DepartmentFamily,Entity,Date,ExpenseType,ExpenseArea,Supplier,PaymentNumber,InvoiceDistributionAmount,InvoiceDescription,SupplierPostCode,ExpenditureType
FOOD STANDARDS AGENCY - Westminster,FOOD STANDARDS AGENCY - Westminster,2019-09-20,EXP - PURCHASE OF GOODS/SERVICES - SHARED SERV OUTSRCG- CIVIL SERV PENSION ADMIN,Finance Director & Branch,LONDON PENSIONS FUND AUTHORITY,1011710688,124568.58,2019-20 LPFA pension deficit reduction,EC3N 4LP,ADMIN
FOOD STANDARDS AGENCY - Westminster,FOOD STANDARDS AGENCY - Westminster,2019-09-10,EXP - PURCHASE OF GOODS/SERVICES - OTHER - PROGRAMME EXPENDITURE,"NOVEL FOODS, GM, RADIOLOGICAL AND FEED ADDITIVES",C E F A S,2012700677,77054.94,FS101211 - Sampling and analysis contact to be undertaken by CEFAS,NR33 0HT,PROGRAMME
FOOD STANDARDS AGENCY - Westminster,FOOD STANDARDS AGENCY - Westminster,2019-09-10,EXP - PURCHASE OF GOODS/SERVICES - OTHER - PROGRAMME EXPENDITURE,"NOVEL FOODS, GM, RADIOLOGICAL AND FEED ADDITIVES",C E F A S,2012700677,77054.94,FS101211 - Sampling and analysis contact to be undertaken by CEFAS,NR33 0HT,PROGRAMME
FOOD STANDARDS AGENCY - Westminster,FOOD STANDARDS AGENCY - Westminster,2019-09-10,EXP - PURCHASE OF GOODS/SERVICES - OTHER - PROGRAMME EXPENDITURE,"NOVEL FOODS, GM, RADIOLOGICAL AND FEED ADDITIVES",C E F A S,2012700677,77054.94,FS101211 - Sampling and analysis contact to be undertaken by CEFAS,NR33 0HT,PROGRAMME
FOOD STANDARDS AGENCY - Westminster,FOOD STANDARDS AGENCY - Westminster,2019-09-16,EXP - AMORTISATION - INTANGIBLE ASSETS,DIGITAL,EPIMORPHICS LTD,1011710650,52073.61,ROF - WP 19 UV & UKFSS,BS20 6PT,CAPITAL
FOOD STANDARDS AGENCY - Westminster,FOOD STANDARDS AGENCY - Westminster,2019-09-03,EXP - PURCHASE OF GOODS/SERVICES - OTHER - PROGRAMME EXPENDITURE,REGULATORY DELIVERY,C E F A S,2012700674,36022.5,Shellfish biotoxin analysis costs 2019/20,NR33 0HT,PROGRAMME
FOOD STANDARDS AGENCY - Westminster,FOOD STANDARDS AGENCY - Westminster,2019-09-06,EXP - PURCHASE OF GOODS/SERVICES - OTHER - PROGRAMME EXPENDITURE,"NOVEL FOODS, GM, RADIOLOGICAL AND FEED ADDITIVES",C E F A S,2012700675,33408.93,Consumer Habits Research around Radiological Sites (FS131008),NR33 0HT,PROGRAMME
FOOD STANDARDS AGENCY - Westminster,FOOD STANDARDS AGENCY - Westminster,2019-09-17,EXP - PURCHASE OF GOODS/SERVICES - TELECOMS - MOBILE PHONES,IT SERVICE DELIVERY,EE LTD,1011710658,32396.72,EE Mobile Contract,AL10 9BW,ADMIN
FOOD STANDARDS AGENCY - Westminster,FOOD STANDARDS AGENCY - Westminster,2019-09-10,EXP - PURCHASE OF GOODS/SERVICES - OTHER ICT COSTS - COMPUTER HARDWARE,IT SERVICE DELIVERY,COREAZURE LTD,1011710610,31655,Datacentre Discovery and Design - Fixed Price - Azure Managed Service (WP4),EC1A 4EN,ADMIN
FOOD STANDARDS AGENCY - Westminster,FOOD STANDARDS AGENCY - Westminster,2019-09-10,EXP - PURCHASE OF GOODS/SERVICES - OTHER - PROGRAMME EXPENDITURE,ANALYTICS UNIT,DECISION LAB LTD,1011710604,31602,Data collection and modelling for food business compliance indicators,SE11 5JH,PROGRAMME
FOOD STANDARDS AGENCY - Westminster,FOOD STANDARDS AGENCY - Westminster,2019-09-04,EXP - PURCHASE OF GOODS/SERVICES - OTHER - PROGRAMME EXPENDITURE,ANALYTICS UNIT,BRITAIN THINKS,1011710559,28705,"Rapid evidence assessment, qualitative workshops and a quantitative survey on what gen Z think about food",WC2R 1LA,PROGRAMME
FOOD STANDARDS AGENCY - Westminster,FOOD STANDARDS AGENCY - Westminster,2019-09-10,EXP - PURCHASE OF GOODS/SERVICES - OTHER - PROGRAMME EXPENDITURE,CHIEF SCIENTIFIC ADVISORS TEAM,I C F CONSULTING SERVICES LTD,1011710616,26790,Research project - Barriers and Enablers to the reporting of intelligence on Food Crime,EC4M 5SB,PROGRAMME
FOOD STANDARDS AGENCY - Westminster,FOOD STANDARDS AGENCY - Westminster,2019-09-11,EXP - PURCHASE OF GOODS/SERV - SUPPORT - IT SUPPORT SERVICES,Finance Director & Branch,SHARED SERVICES CONNECTED LTD,1011710631,24953.18,SSCL Core charge management services ,HP2 7AH,ADMIN
FOOD STANDARDS AGENCY - Westminster,FOOD STANDARDS AGENCY - Westminster,2019-09-16,EXP - PURCHASE OF GOODS/SERVICES - OTHER PROFESSIONAL SERVICES,OPERATIONAL DELIVERY,ARCO UK LTD,1011710654,24534.78,Funds for 2019/20 Bulk PO11770002606 to fulfill operations delivery,HU1 2SJ,PROGRAMME
FOOD STANDARDS AGENCY - Westminster,FOOD STANDARDS AGENCY - Westminster,2019-09-03,EXP - PURCHASE OF GOODS/SERVICES - OTHER - PROGRAMME EXPENDITURE,REGULATORY DELIVERY,C E F A S,2012700674,24453.14,Shellfish official control phytoplankton analysis E&W 2019/20,NR33 0HT,PROGRAMME
FOOD STANDARDS AGENCY - Westminster,FOOD STANDARDS AGENCY - Westminster,2019-09-17,EXP - PURCHASE OF GOODS/SERVICES - OTHER ICT COSTS - COMPUTER SOFTWARE,IT STRATEGY & DEVELOPMENT,SERVICENOW UK LTD,1011710657,23864.4,Licences for Service Now,TW18 4TW,ADMIN
FOOD STANDARDS AGENCY - Westminster,FOOD STANDARDS AGENCY - Westminster,2019-09-20,EXP - PURCHASE OF GOODS/SERVICES - PERSONNEL RELATED,PEOPLE & ORGANISATIONAL CHANGE,KPMG LLP,1011710679,23322,Redacted under s43 of the FOI Act delegate places on Positive Action Pathway for HEO SEO,WD17 1DE,ADMIN
FOOD STANDARDS AGENCY - Westminster,FOOD STANDARDS AGENCY - Westminster,2019-09-03,EXP - PURCHASE OF GOODS/SERVICES - OTHER - PROGRAMME EXPENDITURE,CHIEF SCIENTIFIC ADVISORS TEAM,PROGNOMICS LTD,1011710553,22920.17,SEF for project on 'detection of food contamination',SA7 9FS,PROGRAMME
FOOD STANDARDS AGENCY - Westminster,FOOD STANDARDS AGENCY - Westminster,2019-09-03,EXP - PURCHASE OF GOODS/SERVICES - OTHER - PROGRAMME EXPENDITURE,REGULATORY DELIVERY,C E F A S,2012700674,21771,Shellfish classification management E&W 2019-20,NR33 0HT,PROGRAMME
FOOD STANDARDS AGENCY - Westminster,FOOD STANDARDS AGENCY - Westminster,2019-09-20,EXP - PURCHASE OF GOODS/SERVICES - OTHER - PROGRAMME EXPENDITURE,SCIENTIFIC METHODS AND LABORATORY POLICY,FERA SCIENCE LIMITED,1011710683,20961,FS 616030 - National Reference Laboratory for Contaminants,YO41 1LZ,PROGRAMME
FOOD STANDARDS AGENCY - Westminster,FOOD STANDARDS AGENCY - Westminster,2019-09-19,EXP - PURCHASE OF GOODS/SERVICES - OTHER - PROGRAMME EXPENDITURE,"NOVEL FOODS, GM, RADIOLOGICAL AND FEED ADDITIVES",C E F A S,2012700683,15921,"""A variation in the MOU between FSA and CEFAS to provide an additional module to the PRAME model""",NR33 0HT,PROGRAMME
FOOD STANDARDS AGENCY - Westminster,FOOD STANDARDS AGENCY - Westminster,2019-09-16,EXP - AMORTISATION - INTANGIBLE ASSETS,DIGITAL,EPIMORPHICS LTD,1011710650,10414.72,ROF - WP 19 UV & UKFSS,BS20 6PT,CAPITAL
FOOD STANDARDS AGENCY - Westminster,FOOD STANDARDS AGENCY - Westminster,2019-09-05,EXP - SHORT-TERM CONTRACT & AGENCY STAFF - FULL COST,Digital,Alexander Mann Solutions Limited,1011710567,9239.04,TEMPORARY STAFF,EC2N 3AQ,ADMIN
FOOD STANDARDS AGENCY - Westminster,FOOD STANDARDS AGENCY - Westminster,2019-09-26,EXP - SHORT-TERM CONTRACT & AGENCY STAFF - FULL COST,Digital,Alexander Mann Solutions Limited,1011710730,9239.04,TEMPORARY STAFF,EC2N 3AQ,ADMIN
FOOD STANDARDS AGENCY - Westminster,FOOD STANDARDS AGENCY - Westminster,2019-09-19,EXP - PURCHASE OF GOODS/SERVICES - OTHER - PROGRAMME EXPENDITURE,"NOVEL FOODS, GM, RADIOLOGICAL AND FEED ADDITIVES",C E F A S,2012700683,8784,A variation in the MOU between FSA and CEFAS to perform consumer dose assessment,NR33 0HT,PROGRAMME
FOOD STANDARDS AGENCY - Westminster,FOOD STANDARDS AGENCY - Westminster,2019-09-19,EXP - PURCHASE OF GOODS/SERVICES - OTHER - PROGRAMME EXPENDITURE,"NOVEL FOODS, GM, RADIOLOGICAL AND FEED ADDITIVES",C E F A S,2012700683,6851.58,The provision of modelling and advice for radiological marine assessments in routine and emergency situations ,NR33 0HT,PROGRAMME
FOOD STANDARDS AGENCY - Westminster,FOOD STANDARDS AGENCY - Westminster,2019-09-23,EXP - SHORT-TERM CONTRACT & AGENCY STAFF - FULL COST,Operational Delivery,Alexander Mann Solutions Limited,1011710701,6356.38,TEMPORARY STAFF,EC2N 3AQ,PROGRAMME
FOOD STANDARDS AGENCY - Westminster,FOOD STANDARDS AGENCY - Westminster,2019-09-19,EXP - PURCHASE OF GOODS/SERVICES - OTHER - PROGRAMME EXPENDITURE,"NOVEL FOODS, GM, RADIOLOGICAL AND FEED ADDITIVES",C E F A S,2012700683,5600.41,The provision of modelling and advice for radiological marine assessments in routine and emergency situations,NR33 0HT,PROGRAMME
FOOD STANDARDS AGENCY - Westminster,FOOD STANDARDS AGENCY - Westminster,2019-09-23,EXP - SHORT-TERM CONTRACT & AGENCY STAFF - FULL COST,Finance Director & Branch,Alexander Mann Solutions Limited,1011710701,5435.32,TEMPORARY STAFF,EC2N 3AQ,ADMIN
FOOD STANDARDS AGENCY - Westminster,FOOD STANDARDS AGENCY - Westminster,2019-09-05,EXP - SHORT-TERM CONTRACT & AGENCY STAFF - FULL COST,Operational Delivery,Alexander Mann Solutions Limited,1011710567,5296.98,TEMPORARY STAFF,EC2N 3AQ,PROGRAMME
FOOD STANDARDS AGENCY - Westminster,FOOD STANDARDS AGENCY - Westminster,2019-09-26,EXP - SHORT-TERM CONTRACT & AGENCY STAFF - FULL COST,Operational Delivery,Alexander Mann Solutions Limited,1011710730,5296.98,TEMPORARY STAFF,EC2N 3AQ,PROGRAMME
FOOD STANDARDS AGENCY - Westminster,FOOD STANDARDS AGENCY - Westminster,2019-09-23,EXP - PURCHASE OF GOODS/SERVICES - RAIL TRAVEL,Operational Delivery,CORPORATE TRAVEL MANAGEMENT NORTH LTD,1011710699,5137.4,TRAVEL EXPENSES - UK Wk 37,BD1 5HQ,PROGRAMME
FOOD STANDARDS AGENCY - Westminster,FOOD STANDARDS AGENCY - Westminster,2019-09-26,EXP - SHORT-TERM CONTRACT & AGENCY STAFF - FULL COST,Imports & Exports Team (Admin),Alexander Mann Solutions Limited,1011710730,4901.04,TEMPORARY STAFF,EC2N 3AQ,ADMIN
FOOD STANDARDS AGENCY - Westminster,FOOD STANDARDS AGENCY - Westminster,2019-09-17,EXP - PURCHASE OF GOODS/SERVICES - OTHER ICT COSTS - COMPUTER SOFTWARE,IT STRATEGY & DEVELOPMENT,SERVICENOW UK LTD,1011710657,4772.88,Licences for Service Now,TW18 4TW,ADMIN
FOOD STANDARDS AGENCY - Westminster,FOOD STANDARDS AGENCY - Westminster,2019-09-17,EXP - PURCHASE OF GOODS/SERVICES - TELECOMS - MOBILE PHONES,IT SERVICE DELIVERY,EE LTD,1011710658,4417.56,EE Mobile Contract,AL10 9BW,ADMIN
FOOD STANDARDS AGENCY - Westminster,FOOD STANDARDS AGENCY - Westminster,2019-09-05,EXP - SHORT-TERM CONTRACT & AGENCY STAFF - FULL COST,Finance Director & Branch,Alexander Mann Solutions Limited,1011710567,4278.88,TEMPORARY STAFF,EC2N 3AQ,ADMIN
FOOD STANDARDS AGENCY - Westminster,FOOD STANDARDS AGENCY - Westminster,2019-09-23,EXP - SHORT-TERM CONTRACT & AGENCY STAFF - FULL COST,Digital,Alexander Mann Solutions Limited,1011710701,3695.62,TEMPORARY STAFF,EC2N 3AQ,ADMIN
FOOD STANDARDS AGENCY - Westminster,FOOD STANDARDS AGENCY - Westminster,2019-09-09,EXP - PURCHASE OF GOODS/SERVICES - RAIL TRAVEL,Operational Delivery,CORPORATE TRAVEL MANAGEMENT NORTH LTD,1011710595,3459.7,TRAVEL EXPENSES  UK Wk 35,BD1 5HQ,PROGRAMME
FOOD STANDARDS AGENCY - Westminster,FOOD STANDARDS AGENCY - Westminster,2019-09-05,EXP - SHORT-TERM CONTRACT & AGENCY STAFF - FULL COST,IT Service Delivery,Alexander Mann Solutions Limited,1011710567,2956.44,TEMPORARY STAFF,EC2N 3AQ,ADMIN
FOOD STANDARDS AGENCY - Westminster,FOOD STANDARDS AGENCY - Westminster,2019-09-23,EXP - SHORT-TERM CONTRACT & AGENCY STAFF - FULL COST,IT Service Delivery,Alexander Mann Solutions Limited,1011710701,2956.44,TEMPORARY STAFF,EC2N 3AQ,ADMIN
FOOD STANDARDS AGENCY - Westminster,FOOD STANDARDS AGENCY - Westminster,2019-09-26,EXP - SHORT-TERM CONTRACT & AGENCY STAFF - FULL COST,IT Service Delivery,Alexander Mann Solutions Limited,1011710730,2956.44,TEMPORARY STAFF,EC2N 3AQ,ADMIN
FOOD STANDARDS AGENCY - Westminster,FOOD STANDARDS AGENCY - Westminster,2019-09-16,EXP - PURCHASE OF GOODS/SERVICES - RAIL TRAVEL,Regulatory Delivery,CORPORATE TRAVEL MANAGEMENT NORTH LTD,1011710651,2905.05,TRAVEL EXPENSES UK - Wk 36,BD1 5HQ,ADMIN
FOOD STANDARDS AGENCY - Westminster,FOOD STANDARDS AGENCY - Westminster,2019-09-23,EXP - PURCHASE OF GOODS/SERVICES - SUBSISTENCE,Regulatory Delivery,CORPORATE TRAVEL MANAGEMENT NORTH LTD,1011710699,2903.33,TRAVEL EXPENSES - UK Wk 37,BD1 5HQ,ADMIN
FOOD STANDARDS AGENCY - Westminster,FOOD STANDARDS AGENCY - Westminster,2019-09-23,EXP - PURCHASE OF GOODS/SERVICES - SUBSISTENCE,NFCU Phase 2,CORPORATE TRAVEL MANAGEMENT NORTH LTD,1011710699,2872.81,TRAVEL EXPENSES - UK Wk 37,BD1 5HQ,PROGRAMME
FOOD STANDARDS AGENCY - Westminster,FOOD STANDARDS AGENCY - Westminster,2019-09-23,EXP - PURCHASE OF GOODS/SERVICES - RAIL TRAVEL,NFCU Phase 2,CORPORATE TRAVEL MANAGEMENT NORTH LTD,1011710699,2872.62,TRAVEL EXPENSES - UK Wk 37,BD1 5HQ,PROGRAMME
FOOD STANDARDS AGENCY - Westminster,FOOD STANDARDS AGENCY - Westminster,2019-09-16,EXP - PURCHASE OF GOODS/SERVICES - RAIL TRAVEL,Organisational Development,CORPORATE TRAVEL MANAGEMENT NORTH LTD,1011710651,2871.95,TRAVEL EXPENSES UK - Wk 36,BD1 5HQ,ADMIN
FOOD STANDARDS AGENCY - Westminster,FOOD STANDARDS AGENCY - Westminster,2019-09-09,EXP - PURCHASE OF GOODS/SERVICES - RAIL TRAVEL,Regulatory Delivery,CORPORATE TRAVEL MANAGEMENT NORTH LTD,1011710595,2630,TRAVEL EXPENSES  UK Wk 35,BD1 5HQ,ADMIN
FOOD STANDARDS AGENCY - Westminster,FOOD STANDARDS AGENCY - Westminster,2019-09-16,EXP - PURCHASE OF GOODS/SERVICES - RAIL TRAVEL,Operational Delivery,CORPORATE TRAVEL MANAGEMENT NORTH LTD,1011710651,2461.2,TRAVEL EXPENSES UK - Wk 36,BD1 5HQ,PROGRAMME
FOOD STANDARDS AGENCY - Westminster,FOOD STANDARDS AGENCY - Westminster,2019-09-23,EXP - PURCHASE OF GOODS/SERVICES - RAIL TRAVEL,Regulatory Delivery,CORPORATE TRAVEL MANAGEMENT NORTH LTD,1011710699,2305.9,TRAVEL EXPENSES - UK Wk 37,BD1 5HQ,ADMIN
FOOD STANDARDS AGENCY - Westminster,FOOD STANDARDS AGENCY - Westminster,2019-09-26,EXP - SHORT-TERM CONTRACT & AGENCY STAFF - FULL COST,Comms Directors Office,Alexander Mann Solutions Limited,1011710730,2268.2,TEMPORARY STAFF,EC2N 3AQ,ADMIN
FOOD STANDARDS AGENCY - Westminster,FOOD STANDARDS AGENCY - Westminster,2019-09-23,EXP - PURCHASE OF GOODS/SERVICES - RAIL TRAVEL,Operations Assurance ,CORPORATE TRAVEL MANAGEMENT NORTH LTD,1011710699,2101.1,TRAVEL EXPENSES - UK Wk 37,BD1 5HQ,PROGRAMME
FOOD STANDARDS AGENCY - Westminster,FOOD STANDARDS AGENCY - Westminster,2019-09-16,EXP - PURCHASE OF GOODS/SERVICES - SUBSISTENCE,NFCU Phase 2,CORPORATE TRAVEL MANAGEMENT NORTH LTD,1011710651,2060.25,TRAVEL EXPENSES UK - Wk 36,BD1 5HQ,PROGRAMME
FOOD STANDARDS AGENCY - Westminster,FOOD STANDARDS AGENCY - Westminster,2019-09-16,EXP - PURCHASE OF GOODS/SERVICES - RAIL TRAVEL,NFCU Phase 2,CORPORATE TRAVEL MANAGEMENT NORTH LTD,1011710651,1858.2,TRAVEL EXPENSES UK - Wk 36,BD1 5HQ,PROGRAMME
FOOD STANDARDS AGENCY - Westminster,FOOD STANDARDS AGENCY - Westminster,2019-09-16,EXP - PURCHASE OF GOODS/SERVICES - SUBSISTENCE,Corporate Support Unit,CORPORATE TRAVEL MANAGEMENT NORTH LTD,1011710651,1854.46,TRAVEL EXPENSES UK - Wk 36,BD1 5HQ,ADMIN
FOOD STANDARDS AGENCY - Westminster,FOOD STANDARDS AGENCY - Westminster,2019-09-23,EXP - PURCHASE OF GOODS/SERVICES - SUBSISTENCE,Operational Delivery,CORPORATE TRAVEL MANAGEMENT NORTH LTD,1011710699,1757.66,TRAVEL EXPENSES - UK Wk 37,BD1 5HQ,PROGRAMME
FOOD STANDARDS AGENCY - Westminster,FOOD STANDARDS AGENCY - Westminster,2019-09-09,EXP - PURCHASE OF GOODS/SERVICES - SUBSISTENCE,NFCU Phase 2,CORPORATE TRAVEL MANAGEMENT NORTH LTD,1011710595,1619.17,TRAVEL EXPENSES  UK Wk 35,BD1 5HQ,PROGRAMME
FOOD STANDARDS AGENCY - Westminster,FOOD STANDARDS AGENCY - Westminster,2019-09-23,EXP - PURCHASE OF GOODS/SERVICES - RAIL TRAVEL,IT Information & Knowledge Management,CORPORATE TRAVEL MANAGEMENT NORTH LTD,1011710699,1573.6,TRAVEL EXPENSES - UK Wk 37,BD1 5HQ,ADMIN
FOOD STANDARDS AGENCY - Westminster,FOOD STANDARDS AGENCY - Westminster,2019-09-23,EXP - SHORT-TERM CONTRACT & AGENCY STAFF - FULL COST,Corporate Support Unit,Alexander Mann Solutions Limited,1011710701,1573.16,TEMPORARY STAFF,EC2N 3AQ,ADMIN
FOOD STANDARDS AGENCY - Westminster,FOOD STANDARDS AGENCY - Westminster,2019-09-16,EXP - PURCHASE OF GOODS/SERVICES - RAIL TRAVEL,Corporate Support Unit,CORPORATE TRAVEL MANAGEMENT NORTH LTD,1011710651,1530.85,TRAVEL EXPENSES UK - Wk 36,BD1 5HQ,ADMIN
FOOD STANDARDS AGENCY - Westminster,FOOD STANDARDS AGENCY - Westminster,2019-09-09,EXP - PURCHASE OF GOODS/SERVICES - SUBSISTENCE,Regulatory Delivery,CORPORATE TRAVEL MANAGEMENT NORTH LTD,1011710595,1432.41,TRAVEL EXPENSES  UK Wk 35,BD1 5HQ,ADMIN
FOOD STANDARDS AGENCY - Westminster,FOOD STANDARDS AGENCY - Westminster,2019-09-23,EXP - PURCHASE OF GOODS/SERVICES - RAIL TRAVEL,Comms Directors Office,CORPORATE TRAVEL MANAGEMENT NORTH LTD,1011710699,1226.5,TRAVEL EXPENSES - UK Wk 37,BD1 5HQ,ADMIN
FOOD STANDARDS AGENCY - Westminster,FOOD STANDARDS AGENCY - Westminster,2019-09-05,EXP - SHORT-TERM CONTRACT & AGENCY STAFF - FULL COST,Imports & Exports Team (Admin),Alexander Mann Solutions Limited,1011710567,1225.26,TEMPORARY STAFF,EC2N 3AQ,ADMIN
FOOD STANDARDS AGENCY - Westminster,FOOD STANDARDS AGENCY - Westminster,2019-09-16,EXP - PURCHASE OF GOODS/SERVICES - RAIL TRAVEL,IT Information & Knowledge Management,CORPORATE TRAVEL MANAGEMENT NORTH LTD,1011710651,1188,TRAVEL EXPENSES UK - Wk 36,BD1 5HQ,ADMIN
FOOD STANDARDS AGENCY - Westminster,FOOD STANDARDS AGENCY - Westminster,2019-09-23,EXP - PURCHASE OF GOODS/SERVICES - RAIL TRAVEL,Chief Scientific Advisors team,CORPORATE TRAVEL MANAGEMENT NORTH LTD,1011710699,1184.9,TRAVEL EXPENSES - UK Wk 37,BD1 5HQ,ADMIN
FOOD STANDARDS AGENCY - Westminster,FOOD STANDARDS AGENCY - Westminster,2019-09-23,EXP - PURCHASE OF GOODS/SERVICES - RAIL TRAVEL,"Novel Foods, GM, Radiological and Feed Additives",CORPORATE TRAVEL MANAGEMENT NORTH LTD,1011710699,1147.35,TRAVEL EXPENSES - UK Wk 37,BD1 5HQ,ADMIN
FOOD STANDARDS AGENCY - Westminster,FOOD STANDARDS AGENCY - Westminster,2019-09-09,EXP - PURCHASE OF GOODS/SERVICES - RAIL TRAVEL,Operations Assurance ,CORPORATE TRAVEL MANAGEMENT NORTH LTD,1011710595,1129.45,TRAVEL EXPENSES  UK Wk 35,BD1 5HQ,PROGRAMME
FOOD STANDARDS AGENCY - Westminster,FOOD STANDARDS AGENCY - Westminster,2019-09-23,EXP - PURCHASE OF GOODS/SERVICES - SUBSISTENCE,Comms Directors Office,CORPORATE TRAVEL MANAGEMENT NORTH LTD,1011710699,1070.66,TRAVEL EXPENSES - UK Wk 37,BD1 5HQ,ADMIN
FOOD STANDARDS AGENCY - Westminster,FOOD STANDARDS AGENCY - Westminster,2019-09-16,EXP - PURCHASE OF GOODS/SERVICES - SUBSISTENCE,Regulatory Delivery,CORPORATE TRAVEL MANAGEMENT NORTH LTD,1011710651,1038.35,TRAVEL EXPENSES UK - Wk 36,BD1 5HQ,ADMIN
FOOD STANDARDS AGENCY - Westminster,FOOD STANDARDS AGENCY - Westminster,2019-09-09,EXP - PURCHASE OF GOODS/SERVICES - RAIL TRAVEL,Digital,CORPORATE TRAVEL MANAGEMENT NORTH LTD,1011710595,1007.55,TRAVEL EXPENSES  UK Wk 35,BD1 5HQ,ADMIN
FOOD STANDARDS AGENCY - Westminster,FOOD STANDARDS AGENCY - Westminster,2019-09-16,EXP - PURCHASE OF GOODS/SERVICES - RAIL TRAVEL,Non Meat Field Ops,CORPORATE TRAVEL MANAGEMENT NORTH LTD,1011710651,1006.5,TRAVEL EXPENSES UK - Wk 36,BD1 5HQ,PROGRAMME
FOOD STANDARDS AGENCY - Westminster,FOOD STANDARDS AGENCY - Westminster,2019-09-16,EXP - PURCHASE OF GOODS/SERVICES - AIR TRAVEL,Operations Assurance ,CORPORATE TRAVEL MANAGEMENT NORTH LTD,1011710651,957.48,TRAVEL EXPENSES UK - Wk 36,BD1 5HQ,PROGRAMME
FOOD STANDARDS AGENCY - Westminster,FOOD STANDARDS AGENCY - Westminster,2019-09-05,EXP - SHORT-TERM CONTRACT & AGENCY STAFF - FULL COST,Corporate Support Unit,Alexander Mann Solutions Limited,1011710567,950.21,TEMPORARY STAFF,EC2N 3AQ,ADMIN
FOOD STANDARDS AGENCY - Westminster,FOOD STANDARDS AGENCY - Westminster,2019-09-23,EXP - PURCHASE OF GOODS/SERVICES -  FOREIGN AIR TRAVEL,Operations Assurance ,CORPORATE TRAVEL MANAGEMENT NORTH LTD,1011710699,943.5,TRAVEL EXPENSES - UK Wk 37,BD1 5HQ,PROGRAMME
FOOD STANDARDS AGENCY - Westminster,FOOD STANDARDS AGENCY - Westminster,2019-09-16,EXP - PURCHASE OF GOODS/SERVICES - RAIL TRAVEL,Procurement,CORPORATE TRAVEL MANAGEMENT NORTH LTD,1011710651,915.6,TRAVEL EXPENSES UK - Wk 36,BD1 5HQ,ADMIN
FOOD STANDARDS AGENCY - Westminster,FOOD STANDARDS AGENCY - Westminster,2019-09-09,EXP - PURCHASE OF GOODS/SERVICES - RAIL TRAVEL,NFCU Phase 2,CORPORATE TRAVEL MANAGEMENT NORTH LTD,1011710595,899.1,TRAVEL EXPENSES  UK Wk 35,BD1 5HQ,PROGRAMME
FOOD STANDARDS AGENCY - Westminster,FOOD STANDARDS AGENCY - Westminster,2019-09-23,EXP - PURCHASE OF GOODS/SERVICES - AIR TRAVEL,Chief Executive & Private Office,CORPORATE TRAVEL MANAGEMENT NORTH LTD,1011710699,875.37,TRAVEL EXPENSES - UK Wk 37,BD1 5HQ,ADMIN
FOOD STANDARDS AGENCY - Westminster,FOOD STANDARDS AGENCY - Westminster,2019-09-23,EXP - PURCHASE OF GOODS/SERVICES - SUBSISTENCE,Chief Scientific Advisors team,CORPORATE TRAVEL MANAGEMENT NORTH LTD,1011710699,843.3,TRAVEL EXPENSES - UK Wk 37,BD1 5HQ,ADMIN
FOOD STANDARDS AGENCY - Westminster,FOOD STANDARDS AGENCY - Westminster,2019-09-09,EXP - PURCHASE OF GOODS/SERVICES - SUBSISTENCE,Operations Assurance ,CORPORATE TRAVEL MANAGEMENT NORTH LTD,1011710595,825.32,TRAVEL EXPENSES  UK Wk 35,BD1 5HQ,PROGRAMME
FOOD STANDARDS AGENCY - Westminster,FOOD STANDARDS AGENCY - Westminster,2019-09-23,EXP - PURCHASE OF GOODS/SERVICES - AIR TRAVEL,Regulatory Delivery,CORPORATE TRAVEL MANAGEMENT NORTH LTD,1011710699,815.99,TRAVEL EXPENSES - UK Wk 37,BD1 5HQ,ADMIN
FOOD STANDARDS AGENCY - Westminster,FOOD STANDARDS AGENCY - Westminster,2019-09-23,EXP - PURCHASE OF GOODS/SERVICES - RAIL TRAVEL,Corporate Support Unit,CORPORATE TRAVEL MANAGEMENT NORTH LTD,1011710699,809.21,TRAVEL EXPENSES - UK Wk 37,BD1 5HQ,ADMIN
FOOD STANDARDS AGENCY - Westminster,FOOD STANDARDS AGENCY - Westminster,2019-09-09,EXP - PURCHASE OF GOODS/SERVICES - RAIL TRAVEL,Finance Director & Branch,CORPORATE TRAVEL MANAGEMENT NORTH LTD,1011710595,765.4,TRAVEL EXPENSES  UK Wk 35,BD1 5HQ,ADMIN
FOOD STANDARDS AGENCY - Westminster,FOOD STANDARDS AGENCY - Westminster,2019-09-23,EXP - PURCHASE OF GOODS/SERVICES - RAIL TRAVEL,Planning and Performance,CORPORATE TRAVEL MANAGEMENT NORTH LTD,1011710699,752.45,TRAVEL EXPENSES - UK Wk 37,BD1 5HQ,ADMIN
FOOD STANDARDS AGENCY - Westminster,FOOD STANDARDS AGENCY - Westminster,2019-09-23,EXP - SHORT-TERM CONTRACT & AGENCY STAFF - FULL COST,Programme and project delivery,Alexander Mann Solutions Limited,1011710701,742.37,TEMPORARY STAFF,EC2N 3AQ,ADMIN
FOOD STANDARDS AGENCY - Westminster,FOOD STANDARDS AGENCY - Westminster,2019-09-26,EXP - SHORT-TERM CONTRACT & AGENCY STAFF - FULL COST,Programme and project delivery,Alexander Mann Solutions Limited,1011710730,742.37,TEMPORARY STAFF,EC2N 3AQ,ADMIN
FOOD STANDARDS AGENCY - Westminster,FOOD STANDARDS AGENCY - Westminster,2019-09-09,EXP - PURCHASE OF GOODS/SERVICES - SUBSISTENCE,Operational Delivery,CORPORATE TRAVEL MANAGEMENT NORTH LTD,1011710595,739.21,TRAVEL EXPENSES  UK Wk 35,BD1 5HQ,PROGRAMME
FOOD STANDARDS AGENCY - Westminster,FOOD STANDARDS AGENCY - Westminster,2019-09-05,EXP - SHORT-TERM CONTRACT & AGENCY STAFF - FULL COST,Programme and project delivery,Alexander Mann Solutions Limited,1011710567,722.3,TEMPORARY STAFF,EC2N 3AQ,ADMIN
FOOD STANDARDS AGENCY - Westminster,FOOD STANDARDS AGENCY - Westminster,2019-09-23,EXP - PURCHASE OF GOODS/SERVICES - SUBSISTENCE,Internal Audit,CORPORATE TRAVEL MANAGEMENT NORTH LTD,1011710699,704.4,TRAVEL EXPENSES - UK Wk 37,BD1 5HQ,ADMIN
FOOD STANDARDS AGENCY - Westminster,FOOD STANDARDS AGENCY - Westminster,2019-09-16,EXP - PURCHASE OF GOODS/SERVICES - RAIL TRAVEL,Operations Assurance ,CORPORATE TRAVEL MANAGEMENT NORTH LTD,1011710651,690.2,TRAVEL EXPENSES UK - Wk 36,BD1 5HQ,PROGRAMME
FOOD STANDARDS AGENCY - Westminster,FOOD STANDARDS AGENCY - Westminster,2019-09-16,EXP - PURCHASE OF GOODS/SERVICES - RAIL TRAVEL,Food Incidents & Resilience - Prog,CORPORATE TRAVEL MANAGEMENT NORTH LTD,1011710651,679.95,TRAVEL EXPENSES UK - Wk 36,BD1 5HQ,PROGRAMME
FOOD STANDARDS AGENCY - Westminster,FOOD STANDARDS AGENCY - Westminster,2019-09-23,EXP - PURCHASE OF GOODS/SERVICES - AIR TRAVEL,"Novel Foods, GM, Radiological and Feed Additives",CORPORATE TRAVEL MANAGEMENT NORTH LTD,1011710699,668.64,TRAVEL EXPENSES - UK Wk 37,BD1 5HQ,ADMIN
FOOD STANDARDS AGENCY - Westminster,FOOD STANDARDS AGENCY - Westminster,2019-09-16,EXP - PURCHASE OF GOODS/SERVICES -  FOREIGN AIR TRAVEL,Chemical Contaminants and Residues,CORPORATE TRAVEL MANAGEMENT NORTH LTD,1011710651,660,TRAVEL EXPENSES UK - Wk 36,BD1 5HQ,ADMIN
FOOD STANDARDS AGENCY - Westminster,FOOD STANDARDS AGENCY - Westminster,2019-09-26,EXP - SHORT-TERM CONTRACT & AGENCY STAFF - FULL COST,Finance Director & Branch,Alexander Mann Solutions Limited,1011710730,655.34,TEMPORARY STAFF,EC2N 3AQ,ADMIN
FOOD STANDARDS AGENCY - Westminster,FOOD STANDARDS AGENCY - Westminster,2019-09-23,EXP - PURCHASE OF GOODS/SERVICES - SUBSISTENCE,"Novel Foods, GM, Radiological and Feed Additives",CORPORATE TRAVEL MANAGEMENT NORTH LTD,1011710699,652.45,TRAVEL EXPENSES - UK Wk 37,BD1 5HQ,ADMIN
FOOD STANDARDS AGENCY - Westminster,FOOD STANDARDS AGENCY - Westminster,2019-09-09,EXP - PURCHASE OF GOODS/SERVICES - AIR TRAVEL,Comms Directors Office,CORPORATE TRAVEL MANAGEMENT NORTH LTD,1011710595,652.01,TRAVEL EXPENSES  UK Wk 35,BD1 5HQ,ADMIN
FOOD STANDARDS AGENCY - Westminster,FOOD STANDARDS AGENCY - Westminster,2019-09-23,EXP - SHORT-TERM CONTRACT & AGENCY STAFF - FULL COST,Legal Branch A & Investigations,Alexander Mann Solutions Limited,1011710701,622.13,TEMPORARY STAFF,EC2N 3AQ,ADMIN
FOOD STANDARDS AGENCY - Westminster,FOOD STANDARDS AGENCY - Westminster,2019-09-09,EXP - PURCHASE OF GOODS/SERVICES - RAIL TRAVEL,Corporate Support Unit,CORPORATE TRAVEL MANAGEMENT NORTH LTD,1011710595,621.85,TRAVEL EXPENSES  UK Wk 35,BD1 5HQ,ADMIN
FOOD STANDARDS AGENCY - Westminster,FOOD STANDARDS AGENCY - Westminster,2019-09-26,EXP - SHORT-TERM CONTRACT & AGENCY STAFF - FULL COST,Corporate Support Unit,Alexander Mann Solutions Limited,1011710730,596.9,TEMPORARY STAFF,EC2N 3AQ,ADMIN
FOOD STANDARDS AGENCY - Westminster,FOOD STANDARDS AGENCY - Westminster,2019-09-16,EXP - PURCHASE OF GOODS/SERVICES - AIR TRAVEL,Regulatory Delivery,CORPORATE TRAVEL MANAGEMENT NORTH LTD,1011710651,594.55,TRAVEL EXPENSES UK - Wk 36,BD1 5HQ,ADMIN
FOOD STANDARDS AGENCY - Westminster,FOOD STANDARDS AGENCY - Westminster,2019-09-16,EXP - PURCHASE OF GOODS/SERVICES - RAIL TRAVEL,"Animal Feed, Foodborne Disease and Allergy (AFFDA)",CORPORATE TRAVEL MANAGEMENT NORTH LTD,1011710651,581.5,TRAVEL EXPENSES UK - Wk 36,BD1 5HQ,ADMIN
FOOD STANDARDS AGENCY - Westminster,FOOD STANDARDS AGENCY - Westminster,2019-09-09,EXP - PURCHASE OF GOODS/SERVICES - RAIL TRAVEL,"Novel Foods, GM, Radiological and Feed Additives",CORPORATE TRAVEL MANAGEMENT NORTH LTD,1011710595,578.2,TRAVEL EXPENSES  UK Wk 35,BD1 5HQ,ADMIN
FOOD STANDARDS AGENCY - Westminster,FOOD STANDARDS AGENCY - Westminster,2019-09-23,EXP - PURCHASE OF GOODS/SERVICES - RAIL TRAVEL,Organisational Development,CORPORATE TRAVEL MANAGEMENT NORTH LTD,1011710699,566.75,TRAVEL EXPENSES - UK Wk 37,BD1 5HQ,ADMIN
FOOD STANDARDS AGENCY - Westminster,FOOD STANDARDS AGENCY - Westminster,2019-09-16,EXP - PURCHASE OF GOODS/SERVICES - RAIL TRAVEL,Resilience - Admin,CORPORATE TRAVEL MANAGEMENT NORTH LTD,1011710651,564.15,TRAVEL EXPENSES UK - Wk 36,BD1 5HQ,ADMIN
FOOD STANDARDS AGENCY - Westminster,FOOD STANDARDS AGENCY - Westminster,2019-09-23,EXP - PURCHASE OF GOODS/SERVICES - RAIL TRAVEL,Regulatory & International,CORPORATE TRAVEL MANAGEMENT NORTH LTD,1011710699,563.8,TRAVEL EXPENSES - UK Wk 37,BD1 5HQ,ADMIN
FOOD STANDARDS AGENCY - Westminster,FOOD STANDARDS AGENCY - Westminster,2019-09-23,EXP - PURCHASE OF GOODS/SERVICES - RAIL TRAVEL,Internal Audit,CORPORATE TRAVEL MANAGEMENT NORTH LTD,1011710699,563.5,TRAVEL EXPENSES - UK Wk 37,BD1 5HQ,ADMIN
FOOD STANDARDS AGENCY - Westminster,FOOD STANDARDS AGENCY - Westminster,2019-09-09,EXP - PURCHASE OF GOODS/SERVICES - RAIL TRAVEL,Organisational Development,CORPORATE TRAVEL MANAGEMENT NORTH LTD,1011710595,557.7,TRAVEL EXPENSES  UK Wk 35,BD1 5HQ,ADMIN
FOOD STANDARDS AGENCY - Westminster,FOOD STANDARDS AGENCY - Westminster,2019-09-23,EXP - PURCHASE OF GOODS/SERVICES - SUBSISTENCE,Non Meat Field Ops,CORPORATE TRAVEL MANAGEMENT NORTH LTD,1011710699,547.66,TRAVEL EXPENSES - UK Wk 37,BD1 5HQ,PROGRAMME
FOOD STANDARDS AGENCY - Westminster,FOOD STANDARDS AGENCY - Westminster,2019-09-16,EXP - PURCHASE OF GOODS/SERVICES - RAIL TRAVEL,Regulatory & International,CORPORATE TRAVEL MANAGEMENT NORTH LTD,1011710651,538,TRAVEL EXPENSES UK - Wk 36,BD1 5HQ,ADMIN
FOOD STANDARDS AGENCY - Westminster,FOOD STANDARDS AGENCY - Westminster,2019-09-16,EXP - PURCHASE OF GOODS/SERVICES - RAIL TRAVEL,Internal Audit,CORPORATE TRAVEL MANAGEMENT NORTH LTD,1011710651,534.65,TRAVEL EXPENSES UK - Wk 36,BD1 5HQ,ADMIN
FOOD STANDARDS AGENCY - Westminster,FOOD STANDARDS AGENCY - Westminster,2019-09-23,EXP - PURCHASE OF GOODS/SERVICES - SUBSISTENCE,East 2,CORPORATE TRAVEL MANAGEMENT NORTH LTD,1011710699,528.66,TRAVEL EXPENSES - UK Wk 37,BD1 5HQ,PROGRAMME
FOOD STANDARDS AGENCY - Westminster,FOOD STANDARDS AGENCY - Westminster,2019-09-16,EXP - PURCHASE OF GOODS/SERVICES - RAIL TRAVEL,IT Service Delivery,CORPORATE TRAVEL MANAGEMENT NORTH LTD,1011710651,517.6,TRAVEL EXPENSES UK - Wk 36,BD1 5HQ,ADMIN
FOOD STANDARDS AGENCY - Westminster,FOOD STANDARDS AGENCY - Westminster,2019-09-09,EXP - PURCHASE OF GOODS/SERVICES - AIR TRAVEL,Organisational Development,CORPORATE TRAVEL MANAGEMENT NORTH LTD,1011710595,514.28,TRAVEL EXPENSES  UK Wk 35,BD1 5HQ,ADMIN
FOOD STANDARDS AGENCY - Westminster,FOOD STANDARDS AGENCY - Westminster,2019-09-16,EXP - PURCHASE OF GOODS/SERVICES - RAIL TRAVEL,Food Crime Unit - Prog,CORPORATE TRAVEL MANAGEMENT NORTH LTD,1011710651,503.2,TRAVEL EXPENSES UK - Wk 36,BD1 5HQ,PROGRAMME
FOOD STANDARDS AGENCY - Westminster,FOOD STANDARDS AGENCY - Westminster,2019-09-16,EXP - PURCHASE OF GOODS/SERVICES - SUBSISTENCE,"Novel Foods, GM, Radiological and Feed Additives",CORPORATE TRAVEL MANAGEMENT NORTH LTD,1011710651,497,TRAVEL EXPENSES UK - Wk 36,BD1 5HQ,ADMIN
FOOD STANDARDS AGENCY - Westminster,FOOD STANDARDS AGENCY - Westminster,2019-09-16,EXP - PURCHASE OF GOODS/SERVICES - AIR TRAVEL,NFCU Phase 2,CORPORATE TRAVEL MANAGEMENT NORTH LTD,1011710651,493.84,TRAVEL EXPENSES UK - Wk 36,BD1 5HQ,PROGRAMME
FOOD STANDARDS AGENCY - Westminster,FOOD STANDARDS AGENCY - Westminster,2019-09-23,EXP - PURCHASE OF GOODS/SERVICES - SUBSISTENCE,Organisational Development,CORPORATE TRAVEL MANAGEMENT NORTH LTD,1011710699,469.7,TRAVEL EXPENSES - UK Wk 37,BD1 5HQ,ADMIN
FOOD STANDARDS AGENCY - Westminster,FOOD STANDARDS AGENCY - Westminster,2019-09-23,EXP - PURCHASE OF GOODS/SERVICES - RAIL TRAVEL,Finance Director & Branch,CORPORATE TRAVEL MANAGEMENT NORTH LTD,1011710699,466.55,TRAVEL EXPENSES - UK Wk 37,BD1 5HQ,ADMIN
FOOD STANDARDS AGENCY - Westminster,FOOD STANDARDS AGENCY - Westminster,2019-09-16,EXP - PURCHASE OF GOODS/SERVICES - RAIL TRAVEL,Digital,CORPORATE TRAVEL MANAGEMENT NORTH LTD,1011710651,459.65,TRAVEL EXPENSES UK - Wk 36,BD1 5HQ,ADMIN
FOOD STANDARDS AGENCY - Westminster,FOOD STANDARDS AGENCY - Westminster,2019-09-09,EXP - PURCHASE OF GOODS/SERVICES - SUBSISTENCE,Legal Branch A & Investigations,CORPORATE TRAVEL MANAGEMENT NORTH LTD,1011710595,458.4,TRAVEL EXPENSES  UK Wk 35,BD1 5HQ,ADMIN
FOOD STANDARDS AGENCY - Westminster,FOOD STANDARDS AGENCY - Westminster,2019-09-09,EXP - PURCHASE OF GOODS/SERVICES - RAIL TRAVEL,Wales and West 4 ,CORPORATE TRAVEL MANAGEMENT NORTH LTD,1011710595,453.85,TRAVEL EXPENSES  UK Wk 35,BD1 5HQ,PROGRAMME
FOOD STANDARDS AGENCY - Westminster,FOOD STANDARDS AGENCY - Westminster,2019-09-16,EXP - PURCHASE OF GOODS/SERVICES - SUBSISTENCE,Chief Scientific Advisors team,CORPORATE TRAVEL MANAGEMENT NORTH LTD,1011710651,445.4,TRAVEL EXPENSES UK - Wk 36,BD1 5HQ,ADMIN
FOOD STANDARDS AGENCY - Westminster,FOOD STANDARDS AGENCY - Westminster,2019-09-23,EXP - PURCHASE OF GOODS/SERVICES - SUBSISTENCE,IT Information & Knowledge Management,CORPORATE TRAVEL MANAGEMENT NORTH LTD,1011710699,444.8,TRAVEL EXPENSES - UK Wk 37,BD1 5HQ,ADMIN
FOOD STANDARDS AGENCY - Westminster,FOOD STANDARDS AGENCY - Westminster,2019-09-23,EXP - PURCHASE OF GOODS/SERVICES - SUBSISTENCE,Planning and Performance,CORPORATE TRAVEL MANAGEMENT NORTH LTD,1011710699,432.55,TRAVEL EXPENSES - UK Wk 37,BD1 5HQ,ADMIN
FOOD STANDARDS AGENCY - Westminster,FOOD STANDARDS AGENCY - Westminster,2019-09-09,EXP - PURCHASE OF GOODS/SERVICES - SUBSISTENCE,"Novel Foods, GM, Radiological and Feed Additives",CORPORATE TRAVEL MANAGEMENT NORTH LTD,1011710595,432.05,TRAVEL EXPENSES  UK Wk 35,BD1 5HQ,ADMIN
FOOD STANDARDS AGENCY - Westminster,FOOD STANDARDS AGENCY - Westminster,2019-09-09,EXP - PURCHASE OF GOODS/SERVICES - RAIL TRAVEL,IT Service Delivery,CORPORATE TRAVEL MANAGEMENT NORTH LTD,1011710595,431.75,TRAVEL EXPENSES  UK Wk 35,BD1 5HQ,ADMIN
FOOD STANDARDS AGENCY - Westminster,FOOD STANDARDS AGENCY - Westminster,2019-09-16,EXP - PURCHASE OF GOODS/SERVICES - RAIL TRAVEL,East 3,CORPORATE TRAVEL MANAGEMENT NORTH LTD,1011710651,429.7,TRAVEL EXPENSES UK - Wk 36,BD1 5HQ,PROGRAMME
FOOD STANDARDS AGENCY - Westminster,FOOD STANDARDS AGENCY - Westminster,2019-09-09,EXP - PURCHASE OF GOODS/SERVICES - RAIL TRAVEL,Programme and project delivery,CORPORATE TRAVEL MANAGEMENT NORTH LTD,1011710595,426.25,TRAVEL EXPENSES  UK Wk 35,BD1 5HQ,ADMIN
FOOD STANDARDS AGENCY - Westminster,FOOD STANDARDS AGENCY - Westminster,2019-09-05,EXP - SHORT-TERM CONTRACT & AGENCY STAFF - FULL COST,Legal Branch A & Investigations,Alexander Mann Solutions Limited,1011710567,420.44,TEMPORARY STAFF,EC2N 3AQ,ADMIN
FOOD STANDARDS AGENCY - Westminster,FOOD STANDARDS AGENCY - Westminster,2019-09-23,EXP - PURCHASE OF GOODS/SERVICES - RAIL TRAVEL,"Animal Feed, Foodborne Disease and Allergy (AFFDA)",CORPORATE TRAVEL MANAGEMENT NORTH LTD,1011710699,416.52,TRAVEL EXPENSES - UK Wk 37,BD1 5HQ,ADMIN
FOOD STANDARDS AGENCY - Westminster,FOOD STANDARDS AGENCY - Westminster,2019-09-09,EXP - PURCHASE OF GOODS/SERVICES - SUBSISTENCE,Non Meat Field Ops,CORPORATE TRAVEL MANAGEMENT NORTH LTD,1011710595,409.92,TRAVEL EXPENSES  UK Wk 35,BD1 5HQ,PROGRAMME
FOOD STANDARDS AGENCY - Westminster,FOOD STANDARDS AGENCY - Westminster,2019-09-16,EXP - PURCHASE OF GOODS/SERVICES - SUBSISTENCE,Operational Delivery,CORPORATE TRAVEL MANAGEMENT NORTH LTD,1011710651,408.77,TRAVEL EXPENSES UK - Wk 36,BD1 5HQ,PROGRAMME
FOOD STANDARDS AGENCY - Westminster,FOOD STANDARDS AGENCY - Westminster,2019-09-16,EXP - PURCHASE OF GOODS/SERVICES - SUBSISTENCE,Operations Assurance ,CORPORATE TRAVEL MANAGEMENT NORTH LTD,1011710651,399.16,TRAVEL EXPENSES UK - Wk 36,BD1 5HQ,PROGRAMME
FOOD STANDARDS AGENCY - Westminster,FOOD STANDARDS AGENCY - Westminster,2019-09-16,EXP - PURCHASE OF GOODS/SERVICES - RAIL TRAVEL,Finance Director & Branch,CORPORATE TRAVEL MANAGEMENT NORTH LTD,1011710651,399.1,TRAVEL EXPENSES UK - Wk 36,BD1 5HQ,ADMIN
FOOD STANDARDS AGENCY - Westminster,FOOD STANDARDS AGENCY - Westminster,2019-09-09,EXP - PURCHASE OF GOODS/SERVICES - SUBSISTENCE,IT Information & Knowledge Management,CORPORATE TRAVEL MANAGEMENT NORTH LTD,1011710595,397.09,TRAVEL EXPENSES  UK Wk 35,BD1 5HQ,ADMIN
FOOD STANDARDS AGENCY - Westminster,FOOD STANDARDS AGENCY - Westminster,2019-09-23,EXP - PURCHASE OF GOODS/SERVICES - AIR TRAVEL,"Animal Feed, Foodborne Disease and Allergy (AFFDA)",CORPORATE TRAVEL MANAGEMENT NORTH LTD,1011710699,392.68,TRAVEL EXPENSES - UK Wk 37,BD1 5HQ,ADMIN
FOOD STANDARDS AGENCY - Westminster,FOOD STANDARDS AGENCY - Westminster,2019-09-16,EXP - PURCHASE OF GOODS/SERVICES - RAIL TRAVEL,North 4,CORPORATE TRAVEL MANAGEMENT NORTH LTD,1011710651,391,TRAVEL EXPENSES UK - Wk 36,BD1 5HQ,PROGRAMME
FOOD STANDARDS AGENCY - Westminster,FOOD STANDARDS AGENCY - Westminster,2019-09-16,EXP - PURCHASE OF GOODS/SERVICES - SUBSISTENCE,Comms Directors Office,CORPORATE TRAVEL MANAGEMENT NORTH LTD,1011710651,384.4,TRAVEL EXPENSES UK - Wk 36,BD1 5HQ,ADMIN
FOOD STANDARDS AGENCY - Westminster,FOOD STANDARDS AGENCY - Westminster,2019-09-16,EXP - PURCHASE OF GOODS/SERVICES - SUBSISTENCE,Food Crime Unit - Prog,CORPORATE TRAVEL MANAGEMENT NORTH LTD,1011710651,377.55,TRAVEL EXPENSES UK - Wk 36,BD1 5HQ,PROGRAMME
FOOD STANDARDS AGENCY - Westminster,FOOD STANDARDS AGENCY - Westminster,2019-09-23,EXP - PURCHASE OF GOODS/SERVICES - RAIL TRAVEL,Chief Executive & Private Office,CORPORATE TRAVEL MANAGEMENT NORTH LTD,1011710699,373,TRAVEL EXPENSES - UK Wk 37,BD1 5HQ,ADMIN
FOOD STANDARDS AGENCY - Westminster,FOOD STANDARDS AGENCY - Westminster,2019-09-16,EXP - PURCHASE OF GOODS/SERVICES - RAIL TRAVEL,Wales and West 4 ,CORPORATE TRAVEL MANAGEMENT NORTH LTD,1011710651,368.4,TRAVEL EXPENSES UK - Wk 36,BD1 5HQ,PROGRAMME
FOOD STANDARDS AGENCY - Westminster,FOOD STANDARDS AGENCY - Westminster,2019-09-16,EXP - PURCHASE OF GOODS/SERVICES - SUBSISTENCE,Procurement,CORPORATE TRAVEL MANAGEMENT NORTH LTD,1011710651,361.27,TRAVEL EXPENSES UK - Wk 36,BD1 5HQ,ADMIN
FOOD STANDARDS AGENCY - Westminster,FOOD STANDARDS AGENCY - Westminster,2019-09-23,EXP - PURCHASE OF GOODS/SERVICES - RAIL TRAVEL,East 4,CORPORATE TRAVEL MANAGEMENT NORTH LTD,1011710699,360.4,TRAVEL EXPENSES - UK Wk 37,BD1 5HQ,PROGRAMME
FOOD STANDARDS AGENCY - Westminster,FOOD STANDARDS AGENCY - Westminster,2019-09-23,EXP - PURCHASE OF GOODS/SERVICES - SUBSISTENCE,Operations Assurance ,CORPORATE TRAVEL MANAGEMENT NORTH LTD,1011710699,359.25,TRAVEL EXPENSES - UK Wk 37,BD1 5HQ,PROGRAMME
FOOD STANDARDS AGENCY - Westminster,FOOD STANDARDS AGENCY - Westminster,2019-09-16,EXP - PURCHASE OF GOODS/SERVICES - RAIL TRAVEL,"Novel Foods, GM, Radiological and Feed Additives",CORPORATE TRAVEL MANAGEMENT NORTH LTD,1011710651,356.4,TRAVEL EXPENSES UK - Wk 36,BD1 5HQ,ADMIN
FOOD STANDARDS AGENCY - Westminster,FOOD STANDARDS AGENCY - Westminster,2019-09-23,EXP - PURCHASE OF GOODS/SERVICES - RAIL TRAVEL,General Food Hygiene,CORPORATE TRAVEL MANAGEMENT NORTH LTD,1011710699,351.9,TRAVEL EXPENSES - UK Wk 37,BD1 5HQ,ADMIN
FOOD STANDARDS AGENCY - Westminster,FOOD STANDARDS AGENCY - Westminster,2019-09-09,EXP - PURCHASE OF GOODS/SERVICES - RAIL TRAVEL,Chief Scientific Advisors team,CORPORATE TRAVEL MANAGEMENT NORTH LTD,1011710595,351,TRAVEL EXPENSES  UK Wk 35,BD1 5HQ,ADMIN
FOOD STANDARDS AGENCY - Westminster,FOOD STANDARDS AGENCY - Westminster,2019-09-16,EXP - PURCHASE OF GOODS/SERVICES - RAIL TRAVEL,North 1,CORPORATE TRAVEL MANAGEMENT NORTH LTD,1011710651,350.55,TRAVEL EXPENSES UK - Wk 36,BD1 5HQ,PROGRAMME
FOOD STANDARDS AGENCY - Westminster,FOOD STANDARDS AGENCY - Westminster,2019-09-16,EXP - PURCHASE OF GOODS/SERVICES - SUBSISTENCE,Imports & Exports Team (Admin),CORPORATE TRAVEL MANAGEMENT NORTH LTD,1011710651,345.35,TRAVEL EXPENSES UK - Wk 36,BD1 5HQ,ADMIN
FOOD STANDARDS AGENCY - Westminster,FOOD STANDARDS AGENCY - Westminster,2019-09-16,EXP - PURCHASE OF GOODS/SERVICES - SUBSISTENCE,Analytics Unit,CORPORATE TRAVEL MANAGEMENT NORTH LTD,1011710651,341.8,TRAVEL EXPENSES UK - Wk 36,BD1 5HQ,ADMIN
FOOD STANDARDS AGENCY - Westminster,FOOD STANDARDS AGENCY - Westminster,2019-09-09,EXP - PURCHASE OF GOODS/SERVICES - RAIL TRAVEL,Analytics Unit,CORPORATE TRAVEL MANAGEMENT NORTH LTD,1011710595,336.8,TRAVEL EXPENSES  UK Wk 35,BD1 5HQ,ADMIN
FOOD STANDARDS AGENCY - Westminster,FOOD STANDARDS AGENCY - Westminster,2019-09-23,EXP - PURCHASE OF GOODS/SERVICES - SUBSISTENCE,Corporate Support Unit,CORPORATE TRAVEL MANAGEMENT NORTH LTD,1011710699,333.6,TRAVEL EXPENSES - UK Wk 37,BD1 5HQ,ADMIN
FOOD STANDARDS AGENCY - Westminster,FOOD STANDARDS AGENCY - Westminster,2019-09-23,EXP - PURCHASE OF GOODS/SERVICES - SUBSISTENCE,Food Crime Unit - Prog,CORPORATE TRAVEL MANAGEMENT NORTH LTD,1011710699,325.05,TRAVEL EXPENSES - UK Wk 37,BD1 5HQ,PROGRAMME
FOOD STANDARDS AGENCY - Westminster,FOOD STANDARDS AGENCY - Westminster,2019-09-23,EXP - PURCHASE OF GOODS/SERVICES - SUBSISTENCE,Resilience - Admin,CORPORATE TRAVEL MANAGEMENT NORTH LTD,1011710699,323.2,TRAVEL EXPENSES - UK Wk 37,BD1 5HQ,ADMIN
FOOD STANDARDS AGENCY - Westminster,FOOD STANDARDS AGENCY - Westminster,2019-09-09,EXP - PURCHASE OF GOODS/SERVICES - RAIL TRAVEL,General Food Hygiene,CORPORATE TRAVEL MANAGEMENT NORTH LTD,1011710595,318,TRAVEL EXPENSES  UK Wk 35,BD1 5HQ,ADMIN
FOOD STANDARDS AGENCY - Westminster,FOOD STANDARDS AGENCY - Westminster,2019-09-09,EXP - PURCHASE OF GOODS/SERVICES - RAIL TRAVEL,"Food Additives, Flavourings, and Food Contact Materials",CORPORATE TRAVEL MANAGEMENT NORTH LTD,1011710595,317.35,TRAVEL EXPENSES  UK Wk 35,BD1 5HQ,ADMIN
FOOD STANDARDS AGENCY - Westminster,FOOD STANDARDS AGENCY - Westminster,2019-09-16,EXP - PURCHASE OF GOODS/SERVICES - RAIL TRAVEL,Planning and Performance,CORPORATE TRAVEL MANAGEMENT NORTH LTD,1011710651,313.65,TRAVEL EXPENSES UK - Wk 36,BD1 5HQ,ADMIN
FOOD STANDARDS AGENCY - Westminster,FOOD STANDARDS AGENCY - Westminster,2019-09-09,EXP - PURCHASE OF GOODS/SERVICES - RAIL TRAVEL,"Animal Feed, Foodborne Disease and Allergy (AFFDA)",CORPORATE TRAVEL MANAGEMENT NORTH LTD,1011710595,313,TRAVEL EXPENSES  UK Wk 35,BD1 5HQ,ADMIN
FOOD STANDARDS AGENCY - Westminster,FOOD STANDARDS AGENCY - Westminster,2019-09-16,EXP - PURCHASE OF GOODS/SERVICES - AIR TRAVEL,Imports & Exports Team (Admin),CORPORATE TRAVEL MANAGEMENT NORTH LTD,1011710651,312.67,TRAVEL EXPENSES UK - Wk 36,BD1 5HQ,ADMIN
FOOD STANDARDS AGENCY - Westminster,FOOD STANDARDS AGENCY - Westminster,2019-09-23,EXP - PURCHASE OF GOODS/SERVICES - RAIL TRAVEL,Imports & Exports Team (Admin),CORPORATE TRAVEL MANAGEMENT NORTH LTD,1011710699,308.5,TRAVEL EXPENSES - UK Wk 37,BD1 5HQ,ADMIN
FOOD STANDARDS AGENCY - Westminster,FOOD STANDARDS AGENCY - Westminster,2019-09-09,EXP - PURCHASE OF GOODS/SERVICES - RAIL TRAVEL,North 3,CORPORATE TRAVEL MANAGEMENT NORTH LTD,1011710595,300.85,TRAVEL EXPENSES  UK Wk 35,BD1 5HQ,PROGRAMME
FOOD STANDARDS AGENCY - Westminster,FOOD STANDARDS AGENCY - Westminster,2019-09-23,EXP - PURCHASE OF GOODS/SERVICES - RAIL TRAVEL,Non Meat Field Ops,CORPORATE TRAVEL MANAGEMENT NORTH LTD,1011710699,297,TRAVEL EXPENSES - UK Wk 37,BD1 5HQ,PROGRAMME
FOOD STANDARDS AGENCY - Westminster,FOOD STANDARDS AGENCY - Westminster,2019-09-09,EXP - PURCHASE OF GOODS/SERVICES - SUBSISTENCE,"Food Additives, Flavourings, and Food Contact Materials",CORPORATE TRAVEL MANAGEMENT NORTH LTD,1011710595,295.35,TRAVEL EXPENSES  UK Wk 35,BD1 5HQ,ADMIN
FOOD STANDARDS AGENCY - Westminster,FOOD STANDARDS AGENCY - Westminster,2019-09-16,EXP - PURCHASE OF GOODS/SERVICES - RAIL TRAVEL,Wales and West 1 (England),CORPORATE TRAVEL MANAGEMENT NORTH LTD,1011710651,295.1,TRAVEL EXPENSES UK - Wk 36,BD1 5HQ,PROGRAMME
FOOD STANDARDS AGENCY - Westminster,FOOD STANDARDS AGENCY - Westminster,2019-09-23,EXP - PURCHASE OF GOODS/SERVICES - AIR TRAVEL,Legal Branch A & Investigations,CORPORATE TRAVEL MANAGEMENT NORTH LTD,1011710699,285.76,TRAVEL EXPENSES - UK Wk 37,BD1 5HQ,ADMIN
FOOD STANDARDS AGENCY - Westminster,FOOD STANDARDS AGENCY - Westminster,2019-09-23,EXP - PURCHASE OF GOODS/SERVICES - RAIL TRAVEL,Programme and project delivery,CORPORATE TRAVEL MANAGEMENT NORTH LTD,1011710699,280.7,TRAVEL EXPENSES - UK Wk 37,BD1 5HQ,ADMIN
FOOD STANDARDS AGENCY - Westminster,FOOD STANDARDS AGENCY - Westminster,2019-09-16,EXP - PURCHASE OF GOODS/SERVICES - SUBSISTENCE,East 1,CORPORATE TRAVEL MANAGEMENT NORTH LTD,1011710651,279.05,TRAVEL EXPENSES UK - Wk 36,BD1 5HQ,PROGRAMME
FOOD STANDARDS AGENCY - Westminster,FOOD STANDARDS AGENCY - Westminster,2019-09-23,EXP - PURCHASE OF GOODS/SERVICES - SUBSISTENCE,Wales and West 4 ,CORPORATE TRAVEL MANAGEMENT NORTH LTD,1011710699,277.91,TRAVEL EXPENSES - UK Wk 37,BD1 5HQ,PROGRAMME
FOOD STANDARDS AGENCY - Westminster,FOOD STANDARDS AGENCY - Westminster,2019-09-16,EXP - PURCHASE OF GOODS/SERVICES - RAIL TRAVEL,Wales and West 2 (Wales),CORPORATE TRAVEL MANAGEMENT NORTH LTD,1011710651,274.25,TRAVEL EXPENSES UK - Wk 36,BD1 5HQ,PROGRAMME
FOOD STANDARDS AGENCY - Westminster,FOOD STANDARDS AGENCY - Westminster,2019-09-09,EXP - PURCHASE OF GOODS/SERVICES - SUBSISTENCE,Corporate Support Unit,CORPORATE TRAVEL MANAGEMENT NORTH LTD,1011710595,272.82,TRAVEL EXPENSES  UK Wk 35,BD1 5HQ,ADMIN
FOOD STANDARDS AGENCY - Westminster,FOOD STANDARDS AGENCY - Westminster,2019-09-16,EXP - PURCHASE OF GOODS/SERVICES - RAIL TRAVEL,North 3,CORPORATE TRAVEL MANAGEMENT NORTH LTD,1011710651,271.7,TRAVEL EXPENSES UK - Wk 36,BD1 5HQ,PROGRAMME
FOOD STANDARDS AGENCY - Westminster,FOOD STANDARDS AGENCY - Westminster,2019-09-09,EXP - PURCHASE OF GOODS/SERVICES - SUBSISTENCE,Food Incidents & Resilience - Prog,CORPORATE TRAVEL MANAGEMENT NORTH LTD,1011710595,270.1,TRAVEL EXPENSES  UK Wk 35,BD1 5HQ,PROGRAMME
FOOD STANDARDS AGENCY - Westminster,FOOD STANDARDS AGENCY - Westminster,2019-09-16,EXP - PURCHASE OF GOODS/SERVICES - RAIL TRAVEL,Chief Scientific Advisors team,CORPORATE TRAVEL MANAGEMENT NORTH LTD,1011710651,269.45,TRAVEL EXPENSES UK - Wk 36,BD1 5HQ,ADMIN
FOOD STANDARDS AGENCY - Westminster,FOOD STANDARDS AGENCY - Westminster,2019-09-09,EXP - PURCHASE OF GOODS/SERVICES - RAIL TRAVEL,Food Crime Unit - Admin,CORPORATE TRAVEL MANAGEMENT NORTH LTD,1011710595,265,TRAVEL EXPENSES  UK Wk 35,BD1 5HQ,ADMIN
FOOD STANDARDS AGENCY - Westminster,FOOD STANDARDS AGENCY - Westminster,2019-09-16,EXP - PURCHASE OF GOODS/SERVICES - SUBSISTENCE,IT Information & Knowledge Management,CORPORATE TRAVEL MANAGEMENT NORTH LTD,1011710651,264.6,TRAVEL EXPENSES UK - Wk 36,BD1 5HQ,ADMIN
FOOD STANDARDS AGENCY - Westminster,FOOD STANDARDS AGENCY - Westminster,2019-09-16,EXP - PURCHASE OF GOODS/SERVICES - SUBSISTENCE,Internal Audit,CORPORATE TRAVEL MANAGEMENT NORTH LTD,1011710651,263,TRAVEL EXPENSES UK - Wk 36,BD1 5HQ,ADMIN
FOOD STANDARDS AGENCY - Westminster,FOOD STANDARDS AGENCY - Westminster,2019-09-16,EXP - PURCHASE OF GOODS/SERVICES - AIR TRAVEL,Regulatory & International,CORPORATE TRAVEL MANAGEMENT NORTH LTD,1011710651,261.98,TRAVEL EXPENSES UK - Wk 36,BD1 5HQ,ADMIN
FOOD STANDARDS AGENCY - Westminster,FOOD STANDARDS AGENCY - Westminster,2019-09-23,EXP - PURCHASE OF GOODS/SERVICES - AIR TRAVEL,Analytics Unit,CORPORATE TRAVEL MANAGEMENT NORTH LTD,1011710699,258.34,TRAVEL EXPENSES - UK Wk 37,BD1 5HQ,ADMIN
FOOD STANDARDS AGENCY - Westminster,FOOD STANDARDS AGENCY - Westminster,2019-09-23,EXP - PURCHASE OF GOODS/SERVICES - RAIL TRAVEL,Wales and West 4 ,CORPORATE TRAVEL MANAGEMENT NORTH LTD,1011710699,257.55,TRAVEL EXPENSES - UK Wk 37,BD1 5HQ,PROGRAMME
FOOD STANDARDS AGENCY - Westminster,FOOD STANDARDS AGENCY - Westminster,2019-09-16,EXP - PURCHASE OF GOODS/SERVICES - SUBSISTENCE,Chemical Contaminants and Residues,CORPORATE TRAVEL MANAGEMENT NORTH LTD,1011710651,252.88,TRAVEL EXPENSES UK - Wk 36,BD1 5HQ,ADMIN
FOOD STANDARDS AGENCY - Westminster,FOOD STANDARDS AGENCY - Westminster,2019-09-16,EXP - PURCHASE OF GOODS/SERVICES - RAIL TRAVEL,Imports & Exports Team (Admin),CORPORATE TRAVEL MANAGEMENT NORTH LTD,1011710651,247.5,TRAVEL EXPENSES UK - Wk 36,BD1 5HQ,ADMIN
FOOD STANDARDS AGENCY - Westminster,FOOD STANDARDS AGENCY - Westminster,2019-09-16,EXP - PURCHASE OF GOODS/SERVICES -  FOREIGN AIR TRAVEL,"Novel Foods, GM, Radiological and Feed Additives",CORPORATE TRAVEL MANAGEMENT NORTH LTD,1011710651,246.16,TRAVEL EXPENSES UK - Wk 36,BD1 5HQ,ADMIN
FOOD STANDARDS AGENCY - Westminster,FOOD STANDARDS AGENCY - Westminster,2019-09-16,EXP - PURCHASE OF GOODS/SERVICES - RAIL TRAVEL,Chemical Contaminants and Residues,CORPORATE TRAVEL MANAGEMENT NORTH LTD,1011710651,245.3,TRAVEL EXPENSES UK - Wk 36,BD1 5HQ,ADMIN
FOOD STANDARDS AGENCY - Westminster,FOOD STANDARDS AGENCY - Westminster,2019-09-23,EXP - PURCHASE OF GOODS/SERVICES - RAIL TRAVEL,Wales and West 3 ,CORPORATE TRAVEL MANAGEMENT NORTH LTD,1011710699,244.55,TRAVEL EXPENSES - UK Wk 37,BD1 5HQ,PROGRAMME
FOOD STANDARDS AGENCY - Westminster,FOOD STANDARDS AGENCY - Westminster,2019-09-16,EXP - PURCHASE OF GOODS/SERVICES - SUBSISTENCE,Food Incidents & Resilience - Prog,CORPORATE TRAVEL MANAGEMENT NORTH LTD,1011710651,243.2,TRAVEL EXPENSES UK - Wk 36,BD1 5HQ,PROGRAMME
FOOD STANDARDS AGENCY - Westminster,FOOD STANDARDS AGENCY - Westminster,2019-09-16,EXP - PURCHASE OF GOODS/SERVICES - RAIL TRAVEL,Programme and project delivery,CORPORATE TRAVEL MANAGEMENT NORTH LTD,1011710651,240,TRAVEL EXPENSES UK - Wk 36,BD1 5HQ,ADMIN
FOOD STANDARDS AGENCY - Westminster,FOOD STANDARDS AGENCY - Westminster,2019-09-16,EXP - PURCHASE OF GOODS/SERVICES - SUBSISTENCE,Non Meat Field Ops,CORPORATE TRAVEL MANAGEMENT NORTH LTD,1011710651,239.67,TRAVEL EXPENSES UK - Wk 36,BD1 5HQ,PROGRAMME
FOOD STANDARDS AGENCY - Westminster,FOOD STANDARDS AGENCY - Westminster,2019-09-16,EXP - PURCHASE OF GOODS/SERVICES - RAIL TRAVEL,Comms Directors Office,CORPORATE TRAVEL MANAGEMENT NORTH LTD,1011710651,231.7,TRAVEL EXPENSES UK - Wk 36,BD1 5HQ,ADMIN
FOOD STANDARDS AGENCY - Westminster,FOOD STANDARDS AGENCY - Westminster,2019-09-09,EXP - PURCHASE OF GOODS/SERVICES - SUBSISTENCE,"Meat Hygiene, ABP, TSE",CORPORATE TRAVEL MANAGEMENT NORTH LTD,1011710595,228.2,TRAVEL EXPENSES  UK Wk 35,BD1 5HQ,ADMIN
FOOD STANDARDS AGENCY - Westminster,FOOD STANDARDS AGENCY - Westminster,2019-09-16,EXP - PURCHASE OF GOODS/SERVICES - RAIL TRAVEL,East 4,CORPORATE TRAVEL MANAGEMENT NORTH LTD,1011710651,227.4,TRAVEL EXPENSES UK - Wk 36,BD1 5HQ,PROGRAMME
FOOD STANDARDS AGENCY - Westminster,FOOD STANDARDS AGENCY - Westminster,2019-09-16,EXP - PURCHASE OF GOODS/SERVICES - SUBSISTENCE,Regulatory & International,CORPORATE TRAVEL MANAGEMENT NORTH LTD,1011710651,227.1,TRAVEL EXPENSES UK - Wk 36,BD1 5HQ,ADMIN
FOOD STANDARDS AGENCY - Westminster,FOOD STANDARDS AGENCY - Westminster,2019-09-23,EXP - PURCHASE OF GOODS/SERVICES - RAIL TRAVEL,North 1,CORPORATE TRAVEL MANAGEMENT NORTH LTD,1011710699,225.6,TRAVEL EXPENSES - UK Wk 37,BD1 5HQ,PROGRAMME
FOOD STANDARDS AGENCY - Westminster,FOOD STANDARDS AGENCY - Westminster,2019-09-09,EXP - PURCHASE OF GOODS/SERVICES - RAIL TRAVEL,Comms Directors Office,CORPORATE TRAVEL MANAGEMENT NORTH LTD,1011710595,225,TRAVEL EXPENSES  UK Wk 35,BD1 5HQ,ADMIN
FOOD STANDARDS AGENCY - Westminster,FOOD STANDARDS AGENCY - Westminster,2019-09-23,EXP - PURCHASE OF GOODS/SERVICES - SUBSISTENCE,Risk Assessment ? research and development,CORPORATE TRAVEL MANAGEMENT NORTH LTD,1011710699,224.45,TRAVEL EXPENSES - UK Wk 37,BD1 5HQ,ADMIN
FOOD STANDARDS AGENCY - Westminster,FOOD STANDARDS AGENCY - Westminster,2019-09-16,EXP - PURCHASE OF GOODS/SERVICES - SUBSISTENCE,Wales and West 4 ,CORPORATE TRAVEL MANAGEMENT NORTH LTD,1011710651,224.33,TRAVEL EXPENSES UK - Wk 36,BD1 5HQ,PROGRAMME
FOOD STANDARDS AGENCY - Westminster,FOOD STANDARDS AGENCY - Westminster,2019-09-23,EXP - PURCHASE OF GOODS/SERVICES - SUBSISTENCE,Wales and West 2 (Wales),CORPORATE TRAVEL MANAGEMENT NORTH LTD,1011710699,223.5,TRAVEL EXPENSES - UK Wk 37,BD1 5HQ,PROGRAMME
FOOD STANDARDS AGENCY - Westminster,FOOD STANDARDS AGENCY - Westminster,2019-09-23,EXP - PURCHASE OF GOODS/SERVICES - AIR TRAVEL,Corporate Support Unit,CORPORATE TRAVEL MANAGEMENT NORTH LTD,1011710699,219.98,TRAVEL EXPENSES - UK Wk 37,BD1 5HQ,ADMIN
FOOD STANDARDS AGENCY - Westminster,FOOD STANDARDS AGENCY - Westminster,2019-09-23,EXP - PURCHASE OF GOODS/SERVICES - SUBSISTENCE,General Food Hygiene,CORPORATE TRAVEL MANAGEMENT NORTH LTD,1011710699,216.6,TRAVEL EXPENSES - UK Wk 37,BD1 5HQ,ADMIN
FOOD STANDARDS AGENCY - Westminster,FOOD STANDARDS AGENCY - Westminster,2019-09-16,EXP - PURCHASE OF GOODS/SERVICES - SUBSISTENCE,Organisational Development,CORPORATE TRAVEL MANAGEMENT NORTH LTD,1011710651,214.55,TRAVEL EXPENSES UK - Wk 36,BD1 5HQ,ADMIN
FOOD STANDARDS AGENCY - Westminster,FOOD STANDARDS AGENCY - Westminster,2019-09-23,EXP - PURCHASE OF GOODS/SERVICES - SUBSISTENCE,"Meat Hygiene, ABP, TSE",CORPORATE TRAVEL MANAGEMENT NORTH LTD,1011710699,211.2,TRAVEL EXPENSES - UK Wk 37,BD1 5HQ,ADMIN
FOOD STANDARDS AGENCY - Westminster,FOOD STANDARDS AGENCY - Westminster,2019-09-09,EXP - PURCHASE OF GOODS/SERVICES - SUBSISTENCE,"Animal Feed, Foodborne Disease and Allergy (AFFDA)",CORPORATE TRAVEL MANAGEMENT NORTH LTD,1011710595,209.2,TRAVEL EXPENSES  UK Wk 35,BD1 5HQ,ADMIN
FOOD STANDARDS AGENCY - Westminster,FOOD STANDARDS AGENCY - Westminster,2019-09-23,EXP - PURCHASE OF GOODS/SERVICES - AIR TRAVEL,Chair & Deputy Chair,CORPORATE TRAVEL MANAGEMENT NORTH LTD,1011710699,194.98,TRAVEL EXPENSES - UK Wk 37,BD1 5HQ,ADMIN
FOOD STANDARDS AGENCY - Westminster,FOOD STANDARDS AGENCY - Westminster,2019-09-09,EXP - PURCHASE OF GOODS/SERVICES - SUBSISTENCE,Organisational Development,CORPORATE TRAVEL MANAGEMENT NORTH LTD,1011710595,192.95,TRAVEL EXPENSES  UK Wk 35,BD1 5HQ,ADMIN
FOOD STANDARDS AGENCY - Westminster,FOOD STANDARDS AGENCY - Westminster,2019-09-23,EXP - PURCHASE OF GOODS/SERVICES - RAIL TRAVEL,Chemical Contaminants and Residues,CORPORATE TRAVEL MANAGEMENT NORTH LTD,1011710699,190.4,TRAVEL EXPENSES - UK Wk 37,BD1 5HQ,ADMIN
FOOD STANDARDS AGENCY - Westminster,FOOD STANDARDS AGENCY - Westminster,2019-09-23,EXP - PURCHASE OF GOODS/SERVICES - AIR TRAVEL,IT Information & Knowledge Management,CORPORATE TRAVEL MANAGEMENT NORTH LTD,1011710699,187.51,TRAVEL EXPENSES - UK Wk 37,BD1 5HQ,ADMIN
FOOD STANDARDS AGENCY - Westminster,FOOD STANDARDS AGENCY - Westminster,2019-09-23,EXP - PURCHASE OF GOODS/SERVICES - SUBSISTENCE,Legal Branch A & Investigations,CORPORATE TRAVEL MANAGEMENT NORTH LTD,1011710699,186.62,TRAVEL EXPENSES - UK Wk 37,BD1 5HQ,ADMIN
FOOD STANDARDS AGENCY - Westminster,FOOD STANDARDS AGENCY - Westminster,2019-09-23,EXP - PURCHASE OF GOODS/SERVICES - AIR TRAVEL,Food Crime Unit - Prog,CORPORATE TRAVEL MANAGEMENT NORTH LTD,1011710699,186.23,TRAVEL EXPENSES - UK Wk 37,BD1 5HQ,PROGRAMME
FOOD STANDARDS AGENCY - Westminster,FOOD STANDARDS AGENCY - Westminster,2019-09-23,EXP - PURCHASE OF GOODS/SERVICES - AIR TRAVEL,Operations Assurance ,CORPORATE TRAVEL MANAGEMENT NORTH LTD,1011710699,181.92,TRAVEL EXPENSES - UK Wk 37,BD1 5HQ,PROGRAMME
FOOD STANDARDS AGENCY - Westminster,FOOD STANDARDS AGENCY - Westminster,2019-09-23,EXP - PURCHASE OF GOODS/SERVICES - SUBSISTENCE,Finance Director & Branch,CORPORATE TRAVEL MANAGEMENT NORTH LTD,1011710699,181.45,TRAVEL EXPENSES - UK Wk 37,BD1 5HQ,ADMIN
FOOD STANDARDS AGENCY - Westminster,FOOD STANDARDS AGENCY - Westminster,2019-09-16,EXP - PURCHASE OF GOODS/SERVICES - RAIL TRAVEL,Legal Branch A & Investigations,CORPORATE TRAVEL MANAGEMENT NORTH LTD,1011710651,181.1,TRAVEL EXPENSES UK - Wk 36,BD1 5HQ,ADMIN
FOOD STANDARDS AGENCY - Westminster,FOOD STANDARDS AGENCY - Westminster,2019-09-23,EXP - PURCHASE OF GOODS/SERVICES - RAIL TRAVEL,Food Incidents & Resilience - Prog,CORPORATE TRAVEL MANAGEMENT NORTH LTD,1011710699,178.25,TRAVEL EXPENSES - UK Wk 37,BD1 5HQ,PROGRAMME
FOOD STANDARDS AGENCY - Westminster,FOOD STANDARDS AGENCY - Westminster,2019-09-16,EXP - PURCHASE OF GOODS/SERVICES - SUBSISTENCE,Legal Branch A & Investigations,CORPORATE TRAVEL MANAGEMENT NORTH LTD,1011710651,177.42,TRAVEL EXPENSES UK - Wk 36,BD1 5HQ,ADMIN
FOOD STANDARDS AGENCY - Westminster,FOOD STANDARDS AGENCY - Westminster,2019-09-16,EXP - PURCHASE OF GOODS/SERVICES - AIR TRAVEL,Comms Directors Office,CORPORATE TRAVEL MANAGEMENT NORTH LTD,1011710651,176.59,TRAVEL EXPENSES UK - Wk 36,BD1 5HQ,ADMIN
FOOD STANDARDS AGENCY - Westminster,FOOD STANDARDS AGENCY - Westminster,2019-09-09,EXP - PURCHASE OF GOODS/SERVICES - RAIL TRAVEL,IT Information & Knowledge Management,CORPORATE TRAVEL MANAGEMENT NORTH LTD,1011710595,176.2,TRAVEL EXPENSES  UK Wk 35,BD1 5HQ,ADMIN
FOOD STANDARDS AGENCY - Westminster,FOOD STANDARDS AGENCY - Westminster,2019-09-09,EXP - PURCHASE OF GOODS/SERVICES - SUBSISTENCE,Food Crime Unit - Prog,CORPORATE TRAVEL MANAGEMENT NORTH LTD,1011710595,176.01,TRAVEL EXPENSES  UK Wk 35,BD1 5HQ,PROGRAMME
FOOD STANDARDS AGENCY - Westminster,FOOD STANDARDS AGENCY - Westminster,2019-09-16,EXP - PURCHASE OF GOODS/SERVICES - AIR TRAVEL,"Novel Foods, GM, Radiological and Feed Additives",CORPORATE TRAVEL MANAGEMENT NORTH LTD,1011710651,173.56,TRAVEL EXPENSES UK - Wk 36,BD1 5HQ,ADMIN
FOOD STANDARDS AGENCY - Westminster,FOOD STANDARDS AGENCY - Westminster,2019-09-23,EXP - PURCHASE OF GOODS/SERVICES - RAIL TRAVEL,"Meat Hygiene, ABP, TSE",CORPORATE TRAVEL MANAGEMENT NORTH LTD,1011710699,172.1,TRAVEL EXPENSES - UK Wk 37,BD1 5HQ,ADMIN
FOOD STANDARDS AGENCY - Westminster,FOOD STANDARDS AGENCY - Westminster,2019-09-09,EXP - PURCHASE OF GOODS/SERVICES - OTHER TRAVEL,IT Information & Knowledge Management,CORPORATE TRAVEL MANAGEMENT NORTH LTD,1011710595,170.1,TRAVEL EXPENSES  UK Wk 35,BD1 5HQ,ADMIN
FOOD STANDARDS AGENCY - Westminster,FOOD STANDARDS AGENCY - Westminster,2019-09-23,EXP - PURCHASE OF GOODS/SERVICES - AIR TRAVEL,Comms Directors Office,CORPORATE TRAVEL MANAGEMENT NORTH LTD,1011710699,165.76,TRAVEL EXPENSES - UK Wk 37,BD1 5HQ,ADMIN
FOOD STANDARDS AGENCY - Westminster,FOOD STANDARDS AGENCY - Westminster,2019-09-16,EXP - PURCHASE OF GOODS/SERVICES - SUBSISTENCE,IT Service Delivery,CORPORATE TRAVEL MANAGEMENT NORTH LTD,1011710651,164.6,TRAVEL EXPENSES UK - Wk 36,BD1 5HQ,ADMIN
FOOD STANDARDS AGENCY - Westminster,FOOD STANDARDS AGENCY - Westminster,2019-09-09,EXP - PURCHASE OF GOODS/SERVICES - AIR TRAVEL,Chief Scientific Advisors team,CORPORATE TRAVEL MANAGEMENT NORTH LTD,1011710595,163.85,TRAVEL EXPENSES  UK Wk 35,BD1 5HQ,ADMIN
FOOD STANDARDS AGENCY - Westminster,FOOD STANDARDS AGENCY - Westminster,2019-09-23,EXP - PURCHASE OF GOODS/SERVICES - RAIL TRAVEL,IT Service Delivery,CORPORATE TRAVEL MANAGEMENT NORTH LTD,1011710699,159.85,TRAVEL EXPENSES - UK Wk 37,BD1 5HQ,ADMIN
FOOD STANDARDS AGENCY - Westminster,FOOD STANDARDS AGENCY - Westminster,2019-09-09,EXP - PURCHASE OF GOODS/SERVICES - SUBSISTENCE,Wales and West 2 (Wales),CORPORATE TRAVEL MANAGEMENT NORTH LTD,1011710595,159.28,TRAVEL EXPENSES  UK Wk 35,BD1 5HQ,PROGRAMME
FOOD STANDARDS AGENCY - Westminster,FOOD STANDARDS AGENCY - Westminster,2019-09-16,EXP - PURCHASE OF GOODS/SERVICES - PERSONNEL RELATED  - RELOCATION EXPENSES,NFCU Phase 2,CORPORATE TRAVEL MANAGEMENT NORTH LTD,1011710651,158.33,TRAVEL EXPENSES UK - Wk 36,BD1 5HQ,PROGRAMME
FOOD STANDARDS AGENCY - Westminster,FOOD STANDARDS AGENCY - Westminster,2019-09-16,EXP - PURCHASE OF GOODS/SERVICES - PERSONNEL RELATED  - RELOCATION EXPENSES,Organisational Development,CORPORATE TRAVEL MANAGEMENT NORTH LTD,1011710651,155.83,TRAVEL EXPENSES UK - Wk 36,BD1 5HQ,ADMIN
FOOD STANDARDS AGENCY - Westminster,FOOD STANDARDS AGENCY - Westminster,2019-09-16,EXP - PURCHASE OF GOODS/SERVICES - AIR TRAVEL,Analytics Unit,CORPORATE TRAVEL MANAGEMENT NORTH LTD,1011710651,153.63,TRAVEL EXPENSES UK - Wk 36,BD1 5HQ,ADMIN
FOOD STANDARDS AGENCY - Westminster,FOOD STANDARDS AGENCY - Westminster,2019-09-23,EXP - PURCHASE OF GOODS/SERVICES - RAIL TRAVEL,Wales and West 2 (Wales),CORPORATE TRAVEL MANAGEMENT NORTH LTD,1011710699,152.5,TRAVEL EXPENSES - UK Wk 37,BD1 5HQ,PROGRAMME
FOOD STANDARDS AGENCY - Westminster,FOOD STANDARDS AGENCY - Westminster,2019-09-23,EXP - PURCHASE OF GOODS/SERVICES - RAIL TRAVEL,Analytics Unit,CORPORATE TRAVEL MANAGEMENT NORTH LTD,1011710699,152.35,TRAVEL EXPENSES - UK Wk 37,BD1 5HQ,ADMIN
FOOD STANDARDS AGENCY - Westminster,FOOD STANDARDS AGENCY - Westminster,2019-09-23,EXP - PURCHASE OF GOODS/SERVICES - SUBSISTENCE,Wales and West 3 ,CORPORATE TRAVEL MANAGEMENT NORTH LTD,1011710699,149.82,TRAVEL EXPENSES - UK Wk 37,BD1 5HQ,PROGRAMME
FOOD STANDARDS AGENCY - Westminster,FOOD STANDARDS AGENCY - Westminster,2019-09-16,EXP - PURCHASE OF GOODS/SERVICES - RAIL TRAVEL,North 2,CORPORATE TRAVEL MANAGEMENT NORTH LTD,1011710651,149.45,TRAVEL EXPENSES UK - Wk 36,BD1 5HQ,PROGRAMME
FOOD STANDARDS AGENCY - Westminster,FOOD STANDARDS AGENCY - Westminster,2019-09-16,EXP - PURCHASE OF GOODS/SERVICES - RAIL TRAVEL,East 1,CORPORATE TRAVEL MANAGEMENT NORTH LTD,1011710651,148.45,TRAVEL EXPENSES UK - Wk 36,BD1 5HQ,PROGRAMME
FOOD STANDARDS AGENCY - Westminster,FOOD STANDARDS AGENCY - Westminster,2019-09-09,EXP - PURCHASE OF GOODS/SERVICES - OTHER TRAVEL,Organisational Development,CORPORATE TRAVEL MANAGEMENT NORTH LTD,1011710595,147.96,TRAVEL EXPENSES  UK Wk 35,BD1 5HQ,ADMIN
FOOD STANDARDS AGENCY - Westminster,FOOD STANDARDS AGENCY - Westminster,2019-09-23,EXP - PURCHASE OF GOODS/SERVICES - SUBSISTENCE,Chief Executive & Private Office,CORPORATE TRAVEL MANAGEMENT NORTH LTD,1011710699,147.6,TRAVEL EXPENSES - UK Wk 37,BD1 5HQ,ADMIN
FOOD STANDARDS AGENCY - Westminster,FOOD STANDARDS AGENCY - Westminster,2019-09-23,EXP - PURCHASE OF GOODS/SERVICES - RAIL TRAVEL,Procurement,CORPORATE TRAVEL MANAGEMENT NORTH LTD,1011710699,139.7,TRAVEL EXPENSES - UK Wk 37,BD1 5HQ,ADMIN
FOOD STANDARDS AGENCY - Westminster,FOOD STANDARDS AGENCY - Westminster,2019-09-23,EXP - PURCHASE OF GOODS/SERVICES - SUBSISTENCE,Food Incidents & Resilience - Prog,CORPORATE TRAVEL MANAGEMENT NORTH LTD,1011710699,139.63,TRAVEL EXPENSES - UK Wk 37,BD1 5HQ,PROGRAMME
FOOD STANDARDS AGENCY - Westminster,FOOD STANDARDS AGENCY - Westminster,2019-09-09,EXP - PURCHASE OF GOODS/SERVICES - RAIL TRAVEL,Regulating our Future,CORPORATE TRAVEL MANAGEMENT NORTH LTD,1011710595,136.1,TRAVEL EXPENSES  UK Wk 35,BD1 5HQ,ADMIN
FOOD STANDARDS AGENCY - Westminster,FOOD STANDARDS AGENCY - Westminster,2019-09-16,EXP - PURCHASE OF GOODS/SERVICES - AIR TRAVEL,Food Incidents & Resilience - Prog,CORPORATE TRAVEL MANAGEMENT NORTH LTD,1011710651,132.15,TRAVEL EXPENSES UK - Wk 36,BD1 5HQ,PROGRAMME
FOOD STANDARDS AGENCY - Westminster,FOOD STANDARDS AGENCY - Westminster,2019-09-16,EXP - PURCHASE OF GOODS/SERVICES - PERSONNEL RELATED  - RELOCATION EXPENSES,Corporate Support Unit,CORPORATE TRAVEL MANAGEMENT NORTH LTD,1011710651,131.33,TRAVEL EXPENSES UK - Wk 36,BD1 5HQ,ADMIN
FOOD STANDARDS AGENCY - Westminster,FOOD STANDARDS AGENCY - Westminster,2019-09-16,EXP - PURCHASE OF GOODS/SERVICES - SUBSISTENCE,East 2,CORPORATE TRAVEL MANAGEMENT NORTH LTD,1011710651,129.43,TRAVEL EXPENSES UK - Wk 36,BD1 5HQ,PROGRAMME
FOOD STANDARDS AGENCY - Westminster,FOOD STANDARDS AGENCY - Westminster,2019-09-09,EXP - PURCHASE OF GOODS/SERVICES - RAIL TRAVEL,Legal Branch A & Investigations,CORPORATE TRAVEL MANAGEMENT NORTH LTD,1011710595,129.1,TRAVEL EXPENSES  UK Wk 35,BD1 5HQ,ADMIN
FOOD STANDARDS AGENCY - Westminster,FOOD STANDARDS AGENCY - Westminster,2019-09-23,EXP - PURCHASE OF GOODS/SERVICES - RAIL TRAVEL,East 1,CORPORATE TRAVEL MANAGEMENT NORTH LTD,1011710699,124.45,TRAVEL EXPENSES - UK Wk 37,BD1 5HQ,PROGRAMME
FOOD STANDARDS AGENCY - Westminster,FOOD STANDARDS AGENCY - Westminster,2019-09-23,EXP - PURCHASE OF GOODS/SERVICES - SUBSISTENCE,Digital,CORPORATE TRAVEL MANAGEMENT NORTH LTD,1011710699,124.44,TRAVEL EXPENSES - UK Wk 37,BD1 5HQ,ADMIN
FOOD STANDARDS AGENCY - Westminster,FOOD STANDARDS AGENCY - Westminster,2019-09-23,EXP - PURCHASE OF GOODS/SERVICES - RAIL TRAVEL,Wales and West 2 (England),CORPORATE TRAVEL MANAGEMENT NORTH LTD,1011710699,122.5,TRAVEL EXPENSES - UK Wk 37,BD1 5HQ,PROGRAMME
FOOD STANDARDS AGENCY - Westminster,FOOD STANDARDS AGENCY - Westminster,2019-09-09,EXP - PURCHASE OF GOODS/SERVICES - RAIL TRAVEL,Risk Assessment ? research and development,CORPORATE TRAVEL MANAGEMENT NORTH LTD,1011710595,122.15,TRAVEL EXPENSES  UK Wk 35,BD1 5HQ,ADMIN
FOOD STANDARDS AGENCY - Westminster,FOOD STANDARDS AGENCY - Westminster,2019-09-16,EXP - PURCHASE OF GOODS/SERVICES - AIR TRAVEL,Organisational Development,CORPORATE TRAVEL MANAGEMENT NORTH LTD,1011710651,121.31,TRAVEL EXPENSES UK - Wk 36,BD1 5HQ,ADMIN
FOOD STANDARDS AGENCY - Westminster,FOOD STANDARDS AGENCY - Westminster,2019-09-23,EXP - PURCHASE OF GOODS/SERVICES - SUBSISTENCE,Procurement,CORPORATE TRAVEL MANAGEMENT NORTH LTD,1011710699,115.6,TRAVEL EXPENSES - UK Wk 37,BD1 5HQ,ADMIN
FOOD STANDARDS AGENCY - Westminster,FOOD STANDARDS AGENCY - Westminster,2019-09-16,EXP - PURCHASE OF GOODS/SERVICES - RAIL TRAVEL,Incident Handling and Engagement,CORPORATE TRAVEL MANAGEMENT NORTH LTD,1011710651,114.9,TRAVEL EXPENSES UK - Wk 36,BD1 5HQ,ADMIN
FOOD STANDARDS AGENCY - Westminster,FOOD STANDARDS AGENCY - Westminster,2019-09-09,EXP - PURCHASE OF GOODS/SERVICES - SUBSISTENCE,East 4,CORPORATE TRAVEL MANAGEMENT NORTH LTD,1011710595,113.67,TRAVEL EXPENSES  UK Wk 35,BD1 5HQ,PROGRAMME
FOOD STANDARDS AGENCY - Westminster,FOOD STANDARDS AGENCY - Westminster,2019-09-09,EXP - PURCHASE OF GOODS/SERVICES - SUBSISTENCE,IT Service Delivery,CORPORATE TRAVEL MANAGEMENT NORTH LTD,1011710595,113.04,TRAVEL EXPENSES  UK Wk 35,BD1 5HQ,ADMIN
FOOD STANDARDS AGENCY - Westminster,FOOD STANDARDS AGENCY - Westminster,2019-09-09,EXP - PURCHASE OF GOODS/SERVICES - RAIL TRAVEL,North 4,CORPORATE TRAVEL MANAGEMENT NORTH LTD,1011710595,112.9,TRAVEL EXPENSES  UK Wk 35,BD1 5HQ,PROGRAMME
FOOD STANDARDS AGENCY - Westminster,FOOD STANDARDS AGENCY - Westminster,2019-09-23,EXP - PURCHASE OF GOODS/SERVICES - SUBSISTENCE,Analytics Unit,CORPORATE TRAVEL MANAGEMENT NORTH LTD,1011710699,110.3,TRAVEL EXPENSES - UK Wk 37,BD1 5HQ,ADMIN
FOOD STANDARDS AGENCY - Westminster,FOOD STANDARDS AGENCY - Westminster,2019-09-23,EXP - PURCHASE OF GOODS/SERVICES - RAIL TRAVEL,Legal Branch A & Investigations,CORPORATE TRAVEL MANAGEMENT NORTH LTD,1011710699,109.8,TRAVEL EXPENSES - UK Wk 37,BD1 5HQ,ADMIN
FOOD STANDARDS AGENCY - Westminster,FOOD STANDARDS AGENCY - Westminster,2019-09-09,EXP - PURCHASE OF GOODS/SERVICES - SUBSISTENCE,Wales and West 4 ,CORPORATE TRAVEL MANAGEMENT NORTH LTD,1011710595,106.7,TRAVEL EXPENSES  UK Wk 35,BD1 5HQ,PROGRAMME
FOOD STANDARDS AGENCY - Westminster,FOOD STANDARDS AGENCY - Westminster,2019-09-23,EXP - PURCHASE OF GOODS/SERVICES - AIR TRAVEL,Wales and West 1 (England),CORPORATE TRAVEL MANAGEMENT NORTH LTD,1011710699,106.69,TRAVEL EXPENSES - UK Wk 37,BD1 5HQ,PROGRAMME
FOOD STANDARDS AGENCY - Westminster,FOOD STANDARDS AGENCY - Westminster,2019-09-23,EXP - PURCHASE OF GOODS/SERVICES - RAIL TRAVEL,Digital,CORPORATE TRAVEL MANAGEMENT NORTH LTD,1011710699,104.6,TRAVEL EXPENSES - UK Wk 37,BD1 5HQ,ADMIN
FOOD STANDARDS AGENCY - Westminster,FOOD STANDARDS AGENCY - Westminster,2019-09-16,EXP - PURCHASE OF GOODS/SERVICES - SUBSISTENCE,"Animal Feed, Foodborne Disease and Allergy (AFFDA)",CORPORATE TRAVEL MANAGEMENT NORTH LTD,1011710651,99.6,TRAVEL EXPENSES UK - Wk 36,BD1 5HQ,ADMIN
FOOD STANDARDS AGENCY - Westminster,FOOD STANDARDS AGENCY - Westminster,2019-09-09,EXP - PURCHASE OF GOODS/SERVICES - RAIL TRAVEL,"Meat Hygiene, ABP, TSE",CORPORATE TRAVEL MANAGEMENT NORTH LTD,1011710595,98.2,TRAVEL EXPENSES  UK Wk 35,BD1 5HQ,ADMIN
FOOD STANDARDS AGENCY - Westminster,FOOD STANDARDS AGENCY - Westminster,2019-09-16,EXP - PURCHASE OF GOODS/SERVICES - RAIL TRAVEL,Wales and West 2 (England),CORPORATE TRAVEL MANAGEMENT NORTH LTD,1011710651,98.1,TRAVEL EXPENSES UK - Wk 36,BD1 5HQ,PROGRAMME
FOOD STANDARDS AGENCY - Westminster,FOOD STANDARDS AGENCY - Westminster,2019-09-09,EXP - PURCHASE OF GOODS/SERVICES - SUBSISTENCE,Wales and West 1 (England),CORPORATE TRAVEL MANAGEMENT NORTH LTD,1011710595,98.08,TRAVEL EXPENSES  UK Wk 35,BD1 5HQ,PROGRAMME
FOOD STANDARDS AGENCY - Westminster,FOOD STANDARDS AGENCY - Westminster,2019-09-09,EXP - PURCHASE OF GOODS/SERVICES - RAIL TRAVEL,Non Meat Field Ops,CORPORATE TRAVEL MANAGEMENT NORTH LTD,1011710595,97,TRAVEL EXPENSES  UK Wk 35,BD1 5HQ,PROGRAMME
FOOD STANDARDS AGENCY - Westminster,FOOD STANDARDS AGENCY - Westminster,2019-09-16,EXP - PURCHASE OF GOODS/SERVICES - RAIL TRAVEL,General Food Hygiene,CORPORATE TRAVEL MANAGEMENT NORTH LTD,1011710651,96.6,TRAVEL EXPENSES UK - Wk 36,BD1 5HQ,ADMIN
FOOD STANDARDS AGENCY - Westminster,FOOD STANDARDS AGENCY - Westminster,2019-09-09,EXP - PURCHASE OF GOODS/SERVICES - AIR TRAVEL,Regulatory Delivery,CORPORATE TRAVEL MANAGEMENT NORTH LTD,1011710595,95.47,TRAVEL EXPENSES  UK Wk 35,BD1 5HQ,ADMIN
FOOD STANDARDS AGENCY - Westminster,FOOD STANDARDS AGENCY - Westminster,2019-09-23,EXP - PURCHASE OF GOODS/SERVICES - RAIL TRAVEL,Risk Assessment ? research and development,CORPORATE TRAVEL MANAGEMENT NORTH LTD,1011710699,95,TRAVEL EXPENSES - UK Wk 37,BD1 5HQ,ADMIN
FOOD STANDARDS AGENCY - Westminster,FOOD STANDARDS AGENCY - Westminster,2019-09-09,EXP - PURCHASE OF GOODS/SERVICES - RAIL TRAVEL,Wales and West 1 (England),CORPORATE TRAVEL MANAGEMENT NORTH LTD,1011710595,94.4,TRAVEL EXPENSES  UK Wk 35,BD1 5HQ,PROGRAMME
FOOD STANDARDS AGENCY - Westminster,FOOD STANDARDS AGENCY - Westminster,2019-09-23,EXP - PURCHASE OF GOODS/SERVICES - SUBSISTENCE,Wales and West 2 (England),CORPORATE TRAVEL MANAGEMENT NORTH LTD,1011710699,93.78,TRAVEL EXPENSES - UK Wk 37,BD1 5HQ,PROGRAMME
FOOD STANDARDS AGENCY - Westminster,FOOD STANDARDS AGENCY - Westminster,2019-09-23,EXP - PURCHASE OF GOODS/SERVICES - SUBSISTENCE,"Animal Feed, Foodborne Disease and Allergy (AFFDA)",CORPORATE TRAVEL MANAGEMENT NORTH LTD,1011710699,93.6,TRAVEL EXPENSES - UK Wk 37,BD1 5HQ,ADMIN
FOOD STANDARDS AGENCY - Westminster,FOOD STANDARDS AGENCY - Westminster,2019-09-16,EXP - PURCHASE OF GOODS/SERVICES - PERSONNEL RELATED  - RELOCATION EXPENSES,Food Crime Unit - Prog,CORPORATE TRAVEL MANAGEMENT NORTH LTD,1011710651,93.33,TRAVEL EXPENSES UK - Wk 36,BD1 5HQ,PROGRAMME
FOOD STANDARDS AGENCY - Westminster,FOOD STANDARDS AGENCY - Westminster,2019-09-09,EXP - PURCHASE OF GOODS/SERVICES - RAIL TRAVEL,Internal Audit,CORPORATE TRAVEL MANAGEMENT NORTH LTD,1011710595,92.3,TRAVEL EXPENSES  UK Wk 35,BD1 5HQ,ADMIN
FOOD STANDARDS AGENCY - Westminster,FOOD STANDARDS AGENCY - Westminster,2019-09-23,EXP - PURCHASE OF GOODS/SERVICES - TAXI SERVICES,Imports & Exports Team (Admin),CORPORATE TRAVEL MANAGEMENT NORTH LTD,1011710699,91.68,TRAVEL EXPENSES - UK Wk 37,BD1 5HQ,ADMIN
FOOD STANDARDS AGENCY - Westminster,FOOD STANDARDS AGENCY - Westminster,2019-09-16,EXP - PURCHASE OF GOODS/SERVICES - SUBSISTENCE,"Food Additives, Flavourings, and Food Contact Materials",CORPORATE TRAVEL MANAGEMENT NORTH LTD,1011710651,89.6,TRAVEL EXPENSES UK - Wk 36,BD1 5HQ,ADMIN
FOOD STANDARDS AGENCY - Westminster,FOOD STANDARDS AGENCY - Westminster,2019-09-16,EXP - PURCHASE OF GOODS/SERVICES - PERSONNEL RELATED  - RELOCATION EXPENSES,"Food Additives, Flavourings, and Food Contact Materials",CORPORATE TRAVEL MANAGEMENT NORTH LTD,1011710651,87.16,TRAVEL EXPENSES UK - Wk 36,BD1 5HQ,ADMIN
FOOD STANDARDS AGENCY - Westminster,FOOD STANDARDS AGENCY - Westminster,2019-09-16,EXP - PURCHASE OF GOODS/SERVICES -  FOREIGN AIR TRAVEL,"Food Additives, Flavourings, and Food Contact Materials",CORPORATE TRAVEL MANAGEMENT NORTH LTD,1011710651,87.16,TRAVEL EXPENSES UK - Wk 36,BD1 5HQ,ADMIN
FOOD STANDARDS AGENCY - Westminster,FOOD STANDARDS AGENCY - Westminster,2019-09-09,EXP - PURCHASE OF GOODS/SERVICES - AIR TRAVEL,Non Meat Field Ops,CORPORATE TRAVEL MANAGEMENT NORTH LTD,1011710595,81.33,TRAVEL EXPENSES  UK Wk 35,BD1 5HQ,PROGRAMME
FOOD STANDARDS AGENCY - Westminster,FOOD STANDARDS AGENCY - Westminster,2019-09-09,EXP - PURCHASE OF GOODS/SERVICES - SUBSISTENCE,Planning and Performance,CORPORATE TRAVEL MANAGEMENT NORTH LTD,1011710595,80.1,TRAVEL EXPENSES  UK Wk 35,BD1 5HQ,ADMIN
FOOD STANDARDS AGENCY - Westminster,FOOD STANDARDS AGENCY - Westminster,2019-09-09,EXP - PURCHASE OF GOODS/SERVICES - AIR TRAVEL,Legal Branch A & Investigations,CORPORATE TRAVEL MANAGEMENT NORTH LTD,1011710595,77.33,TRAVEL EXPENSES  UK Wk 35,BD1 5HQ,ADMIN
FOOD STANDARDS AGENCY - Westminster,FOOD STANDARDS AGENCY - Westminster,2019-09-16,EXP - PURCHASE OF GOODS/SERVICES - SUBSISTENCE,East 4,CORPORATE TRAVEL MANAGEMENT NORTH LTD,1011710651,75.6,TRAVEL EXPENSES UK - Wk 36,BD1 5HQ,PROGRAMME
FOOD STANDARDS AGENCY - Westminster,FOOD STANDARDS AGENCY - Westminster,2019-09-09,EXP - PURCHASE OF GOODS/SERVICES - SUBSISTENCE,Digital,CORPORATE TRAVEL MANAGEMENT NORTH LTD,1011710595,75.1,TRAVEL EXPENSES  UK Wk 35,BD1 5HQ,ADMIN
FOOD STANDARDS AGENCY - Westminster,FOOD STANDARDS AGENCY - Westminster,2019-09-09,EXP - PURCHASE OF GOODS/SERVICES - RAIL TRAVEL,East 2,CORPORATE TRAVEL MANAGEMENT NORTH LTD,1011710595,74.5,TRAVEL EXPENSES  UK Wk 35,BD1 5HQ,PROGRAMME
FOOD STANDARDS AGENCY - Westminster,FOOD STANDARDS AGENCY - Westminster,2019-09-23,EXP - PURCHASE OF GOODS/SERVICES - OTHER TRAVEL,Organisational Development,CORPORATE TRAVEL MANAGEMENT NORTH LTD,1011710699,71.3,TRAVEL EXPENSES - UK Wk 37,BD1 5HQ,ADMIN
FOOD STANDARDS AGENCY - Westminster,FOOD STANDARDS AGENCY - Westminster,2019-09-23,EXP - PURCHASE OF GOODS/SERVICES - SUBSISTENCE,North 1,CORPORATE TRAVEL MANAGEMENT NORTH LTD,1011710699,69.6,TRAVEL EXPENSES - UK Wk 37,BD1 5HQ,PROGRAMME
FOOD STANDARDS AGENCY - Westminster,FOOD STANDARDS AGENCY - Westminster,2019-09-23,EXP - PURCHASE OF GOODS/SERVICES - SUBSISTENCE,North 3,CORPORATE TRAVEL MANAGEMENT NORTH LTD,1011710699,69.6,TRAVEL EXPENSES - UK Wk 37,BD1 5HQ,PROGRAMME
FOOD STANDARDS AGENCY - Westminster,FOOD STANDARDS AGENCY - Westminster,2019-09-09,EXP - PURCHASE OF GOODS/SERVICES - RAIL TRAVEL,North 1,CORPORATE TRAVEL MANAGEMENT NORTH LTD,1011710595,67.95,TRAVEL EXPENSES  UK Wk 35,BD1 5HQ,PROGRAMME
FOOD STANDARDS AGENCY - Westminster,FOOD STANDARDS AGENCY - Westminster,2019-09-09,EXP - PURCHASE OF GOODS/SERVICES - SUBSISTENCE,Wales and West 3 ,CORPORATE TRAVEL MANAGEMENT NORTH LTD,1011710595,67.6,TRAVEL EXPENSES  UK Wk 35,BD1 5HQ,PROGRAMME
FOOD STANDARDS AGENCY - Westminster,FOOD STANDARDS AGENCY - Westminster,2019-09-09,EXP - PURCHASE OF GOODS/SERVICES - SUBSISTENCE,East 1,CORPORATE TRAVEL MANAGEMENT NORTH LTD,1011710595,65.6,TRAVEL EXPENSES  UK Wk 35,BD1 5HQ,PROGRAMME
FOOD STANDARDS AGENCY - Westminster,FOOD STANDARDS AGENCY - Westminster,2019-09-16,EXP - PURCHASE OF GOODS/SERVICES - SUBSISTENCE,East 3,CORPORATE TRAVEL MANAGEMENT NORTH LTD,1011710651,59.6,TRAVEL EXPENSES UK - Wk 36,BD1 5HQ,PROGRAMME
FOOD STANDARDS AGENCY - Westminster,FOOD STANDARDS AGENCY - Westminster,2019-09-09,EXP - PURCHASE OF GOODS/SERVICES - OTHER TRAVEL,Chief Executive & Private Office,CORPORATE TRAVEL MANAGEMENT NORTH LTD,1011710595,57.94,TRAVEL EXPENSES  UK Wk 35,BD1 5HQ,ADMIN
FOOD STANDARDS AGENCY - Westminster,FOOD STANDARDS AGENCY - Westminster,2019-09-23,EXP - PURCHASE OF GOODS/SERVICES - AIR TRAVEL,Operational Delivery,CORPORATE TRAVEL MANAGEMENT NORTH LTD,1011710699,57.3,TRAVEL EXPENSES - UK Wk 37,BD1 5HQ,PROGRAMME
FOOD STANDARDS AGENCY - Westminster,FOOD STANDARDS AGENCY - Westminster,2019-09-09,EXP - PURCHASE OF GOODS/SERVICES - RAIL TRAVEL,Wales and West 3 ,CORPORATE TRAVEL MANAGEMENT NORTH LTD,1011710595,54,TRAVEL EXPENSES  UK Wk 35,BD1 5HQ,PROGRAMME
FOOD STANDARDS AGENCY - Westminster,FOOD STANDARDS AGENCY - Westminster,2019-09-23,EXP - PURCHASE OF GOODS/SERVICES - RAIL TRAVEL,General Food Hygiene,CORPORATE TRAVEL MANAGEMENT NORTH LTD,1011710699,52.6,TRAVEL EXPENSES - UK Wk 37,BD1 5HQ,ADMIN
FOOD STANDARDS AGENCY - Westminster,FOOD STANDARDS AGENCY - Westminster,2019-09-23,EXP - PURCHASE OF GOODS/SERVICES - RAIL TRAVEL,Food Crime Unit - Prog,CORPORATE TRAVEL MANAGEMENT NORTH LTD,1011710699,52.3,TRAVEL EXPENSES - UK Wk 37,BD1 5HQ,PROGRAMME
FOOD STANDARDS AGENCY - Westminster,FOOD STANDARDS AGENCY - Westminster,2019-09-09,EXP - PURCHASE OF GOODS/SERVICES - OTHER TRAVEL,Regulatory Delivery,CORPORATE TRAVEL MANAGEMENT NORTH LTD,1011710595,51.15,TRAVEL EXPENSES  UK Wk 35,BD1 5HQ,ADMIN
FOOD STANDARDS AGENCY - Westminster,FOOD STANDARDS AGENCY - Westminster,2019-09-09,EXP - PURCHASE OF GOODS/SERVICES - SUBSISTENCE,Regulating our Future,CORPORATE TRAVEL MANAGEMENT NORTH LTD,1011710595,48.15,TRAVEL EXPENSES  UK Wk 35,BD1 5HQ,ADMIN
FOOD STANDARDS AGENCY - Westminster,FOOD STANDARDS AGENCY - Westminster,2019-09-09,EXP - PURCHASE OF GOODS/SERVICES - SUBSISTENCE,North 1,CORPORATE TRAVEL MANAGEMENT NORTH LTD,1011710595,47.6,TRAVEL EXPENSES  UK Wk 35,BD1 5HQ,PROGRAMME
FOOD STANDARDS AGENCY - Westminster,FOOD STANDARDS AGENCY - Westminster,2019-09-16,EXP - PURCHASE OF GOODS/SERVICES - OTHER TRAVEL,Organisational Development,CORPORATE TRAVEL MANAGEMENT NORTH LTD,1011710651,46.99,TRAVEL EXPENSES UK - Wk 36,BD1 5HQ,ADMIN
FOOD STANDARDS AGENCY - Westminster,FOOD STANDARDS AGENCY - Westminster,2019-09-09,EXP - PURCHASE OF GOODS/SERVICES - SUBSISTENCE,Finance Director & Branch,CORPORATE TRAVEL MANAGEMENT NORTH LTD,1011710595,46.62,TRAVEL EXPENSES  UK Wk 35,BD1 5HQ,ADMIN
FOOD STANDARDS AGENCY - Westminster,FOOD STANDARDS AGENCY - Westminster,2019-09-16,EXP - PURCHASE OF GOODS/SERVICES - PERSONNEL RELATED  - RELOCATION EXPENSES,Comms Directors Office,CORPORATE TRAVEL MANAGEMENT NORTH LTD,1011710651,45.99,TRAVEL EXPENSES UK - Wk 36,BD1 5HQ,ADMIN
FOOD STANDARDS AGENCY - Westminster,FOOD STANDARDS AGENCY - Westminster,2019-09-23,EXP - PURCHASE OF GOODS/SERVICES - SUBSISTENCE,Wales and West 1 (England),CORPORATE TRAVEL MANAGEMENT NORTH LTD,1011710699,44.7,TRAVEL EXPENSES - UK Wk 37,BD1 5HQ,PROGRAMME
FOOD STANDARDS AGENCY - Westminster,FOOD STANDARDS AGENCY - Westminster,2019-09-16,EXP - PURCHASE OF GOODS/SERVICES - SUBSISTENCE,Resilience - Admin,CORPORATE TRAVEL MANAGEMENT NORTH LTD,1011710651,44,TRAVEL EXPENSES UK - Wk 36,BD1 5HQ,ADMIN
FOOD STANDARDS AGENCY - Westminster,FOOD STANDARDS AGENCY - Westminster,2019-09-09,EXP - PURCHASE OF GOODS/SERVICES - RAIL TRAVEL,Procurement,CORPORATE TRAVEL MANAGEMENT NORTH LTD,1011710595,43.9,TRAVEL EXPENSES  UK Wk 35,BD1 5HQ,ADMIN
FOOD STANDARDS AGENCY - Westminster,FOOD STANDARDS AGENCY - Westminster,2019-09-16,EXP - PURCHASE OF GOODS/SERVICES - RAIL TRAVEL,Wales and West 3 ,CORPORATE TRAVEL MANAGEMENT NORTH LTD,1011710651,42,TRAVEL EXPENSES UK - Wk 36,BD1 5HQ,PROGRAMME
FOOD STANDARDS AGENCY - Westminster,FOOD STANDARDS AGENCY - Westminster,2019-09-09,EXP - PURCHASE OF GOODS/SERVICES - SUBSISTENCE,East 2,CORPORATE TRAVEL MANAGEMENT NORTH LTD,1011710595,40.7,TRAVEL EXPENSES  UK Wk 35,BD1 5HQ,PROGRAMME
FOOD STANDARDS AGENCY - Westminster,FOOD STANDARDS AGENCY - Westminster,2019-09-16,EXP - PURCHASE OF GOODS/SERVICES - SUBSISTENCE,Digital,CORPORATE TRAVEL MANAGEMENT NORTH LTD,1011710651,40.1,TRAVEL EXPENSES UK - Wk 36,BD1 5HQ,ADMIN
FOOD STANDARDS AGENCY - Westminster,FOOD STANDARDS AGENCY - Westminster,2019-09-23,EXP - PURCHASE OF GOODS/SERVICES - SUBSISTENCE,East 4,CORPORATE TRAVEL MANAGEMENT NORTH LTD,1011710699,40.1,TRAVEL EXPENSES - UK Wk 37,BD1 5HQ,PROGRAMME
FOOD STANDARDS AGENCY - Westminster,FOOD STANDARDS AGENCY - Westminster,2019-09-09,EXP - PURCHASE OF GOODS/SERVICES - AIR TRAVEL,Wales and West 4 ,CORPORATE TRAVEL MANAGEMENT NORTH LTD,1011710595,39.11,TRAVEL EXPENSES  UK Wk 35,BD1 5HQ,PROGRAMME
FOOD STANDARDS AGENCY - Westminster,FOOD STANDARDS AGENCY - Westminster,2019-09-16,EXP - PURCHASE OF GOODS/SERVICES - RAIL TRAVEL,Risk Assessment - operations,CORPORATE TRAVEL MANAGEMENT NORTH LTD,1011710651,37.8,TRAVEL EXPENSES UK - Wk 36,BD1 5HQ,ADMIN
FOOD STANDARDS AGENCY - Westminster,FOOD STANDARDS AGENCY - Westminster,2019-09-09,EXP - PURCHASE OF GOODS/SERVICES - RAIL TRAVEL,Food Crime Unit - Prog,CORPORATE TRAVEL MANAGEMENT NORTH LTD,1011710595,37,TRAVEL EXPENSES  UK Wk 35,BD1 5HQ,PROGRAMME
FOOD STANDARDS AGENCY - Westminster,FOOD STANDARDS AGENCY - Westminster,2019-09-23,EXP - PURCHASE OF GOODS/SERVICES - OTHER TRAVEL,Operations Assurance ,CORPORATE TRAVEL MANAGEMENT NORTH LTD,1011710699,34.15,TRAVEL EXPENSES - UK Wk 37,BD1 5HQ,PROGRAMME
FOOD STANDARDS AGENCY - Westminster,FOOD STANDARDS AGENCY - Westminster,2019-09-09,EXP - PURCHASE OF GOODS/SERVICES - RAIL TRAVEL,East 1,CORPORATE TRAVEL MANAGEMENT NORTH LTD,1011710595,33.7,TRAVEL EXPENSES  UK Wk 35,BD1 5HQ,PROGRAMME
FOOD STANDARDS AGENCY - Westminster,FOOD STANDARDS AGENCY - Westminster,2019-09-23,EXP - PURCHASE OF GOODS/SERVICES - TAXI SERVICES,Regulatory Delivery,CORPORATE TRAVEL MANAGEMENT NORTH LTD,1011710699,29.55,TRAVEL EXPENSES - UK Wk 37,BD1 5HQ,ADMIN
FOOD STANDARDS AGENCY - Westminster,FOOD STANDARDS AGENCY - Westminster,2019-09-16,EXP - PURCHASE OF GOODS/SERVICES - RAIL TRAVEL,"Meat Hygiene, ABP, TSE",CORPORATE TRAVEL MANAGEMENT NORTH LTD,1011710651,28.2,TRAVEL EXPENSES UK - Wk 36,BD1 5HQ,ADMIN
FOOD STANDARDS AGENCY - Westminster,FOOD STANDARDS AGENCY - Westminster,2019-09-23,EXP - PURCHASE OF GOODS/SERVICES - RAIL TRAVEL,North 4,CORPORATE TRAVEL MANAGEMENT NORTH LTD,1011710699,27.15,TRAVEL EXPENSES - UK Wk 37,BD1 5HQ,PROGRAMME
FOOD STANDARDS AGENCY - Westminster,FOOD STANDARDS AGENCY - Westminster,2019-09-16,EXP - PURCHASE OF GOODS/SERVICES - OTHER TRAVEL,IT Information & Knowledge Management,CORPORATE TRAVEL MANAGEMENT NORTH LTD,1011710651,26.2,TRAVEL EXPENSES UK - Wk 36,BD1 5HQ,ADMIN
FOOD STANDARDS AGENCY - Westminster,FOOD STANDARDS AGENCY - Westminster,2019-09-16,EXP - PURCHASE OF GOODS/SERVICES - OTHER TRAVEL,NFCU Phase 2,CORPORATE TRAVEL MANAGEMENT NORTH LTD,1011710651,26.2,TRAVEL EXPENSES UK - Wk 36,BD1 5HQ,PROGRAMME
FOOD STANDARDS AGENCY - Westminster,FOOD STANDARDS AGENCY - Westminster,2019-09-23,EXP - PURCHASE OF GOODS/SERVICES - OTHER TRAVEL,Comms Directors Office,CORPORATE TRAVEL MANAGEMENT NORTH LTD,1011710699,25.25,TRAVEL EXPENSES - UK Wk 37,BD1 5HQ,ADMIN
FOOD STANDARDS AGENCY - Westminster,FOOD STANDARDS AGENCY - Westminster,2019-09-23,EXP - PURCHASE OF GOODS/SERVICES - RAIL TRAVEL,Wales and West 1 (England),CORPORATE TRAVEL MANAGEMENT NORTH LTD,1011710699,24.5,TRAVEL EXPENSES - UK Wk 37,BD1 5HQ,PROGRAMME
FOOD STANDARDS AGENCY - Westminster,FOOD STANDARDS AGENCY - Westminster,2019-09-23,EXP - PURCHASE OF GOODS/SERVICES - RAIL TRAVEL,Incident Handling and Engagement,CORPORATE TRAVEL MANAGEMENT NORTH LTD,1011710699,24.3,TRAVEL EXPENSES - UK Wk 37,BD1 5HQ,ADMIN
FOOD STANDARDS AGENCY - Westminster,FOOD STANDARDS AGENCY - Westminster,2019-09-23,EXP - PURCHASE OF GOODS/SERVICES - RAIL TRAVEL,Regulating our Future,CORPORATE TRAVEL MANAGEMENT NORTH LTD,1011710699,23.25,TRAVEL EXPENSES - UK Wk 37,BD1 5HQ,ADMIN
FOOD STANDARDS AGENCY - Westminster,FOOD STANDARDS AGENCY - Westminster,2019-09-23,EXP - PURCHASE OF GOODS/SERVICES - RAIL TRAVEL,Wales and West 1 (Wales),CORPORATE TRAVEL MANAGEMENT NORTH LTD,1011710699,21.2,TRAVEL EXPENSES - UK Wk 37,BD1 5HQ,PROGRAMME
FOOD STANDARDS AGENCY - Westminster,FOOD STANDARDS AGENCY - Westminster,2019-09-09,EXP - PURCHASE OF GOODS/SERVICES - RAIL TRAVEL,Food Incidents & Resilience - Prog,CORPORATE TRAVEL MANAGEMENT NORTH LTD,1011710595,19.75,TRAVEL EXPENSES  UK Wk 35,BD1 5HQ,PROGRAMME
FOOD STANDARDS AGENCY - Westminster,FOOD STANDARDS AGENCY - Westminster,2019-09-16,EXP - PURCHASE OF GOODS/SERVICES - RAIL TRAVEL,Analytics Unit,CORPORATE TRAVEL MANAGEMENT NORTH LTD,1011710651,19.6,TRAVEL EXPENSES UK - Wk 36,BD1 5HQ,ADMIN
FOOD STANDARDS AGENCY - Westminster,FOOD STANDARDS AGENCY - Westminster,2019-09-23,EXP - PURCHASE OF GOODS/SERVICES - AIR TRAVEL,Food Incidents & Resilience - Prog,CORPORATE TRAVEL MANAGEMENT NORTH LTD,1011710699,19.15,TRAVEL EXPENSES - UK Wk 37,BD1 5HQ,PROGRAMME
FOOD STANDARDS AGENCY - Westminster,FOOD STANDARDS AGENCY - Westminster,2019-09-23,EXP - PURCHASE OF GOODS/SERVICES - OTHER TRAVEL,Food Crime Unit - Admin,CORPORATE TRAVEL MANAGEMENT NORTH LTD,1011710699,18.6,TRAVEL EXPENSES - UK Wk 37,BD1 5HQ,ADMIN
FOOD STANDARDS AGENCY - Westminster,FOOD STANDARDS AGENCY - Westminster,2019-09-09,EXP - PURCHASE OF GOODS/SERVICES - RAIL TRAVEL,Regulatory & International,CORPORATE TRAVEL MANAGEMENT NORTH LTD,1011710595,18.2,TRAVEL EXPENSES  UK Wk 35,BD1 5HQ,ADMIN
FOOD STANDARDS AGENCY - Westminster,FOOD STANDARDS AGENCY - Westminster,2019-09-16,EXP - PURCHASE OF GOODS/SERVICES - RAIL TRAVEL,Food Crime Unit - Admin,CORPORATE TRAVEL MANAGEMENT NORTH LTD,1011710651,15.2,TRAVEL EXPENSES UK - Wk 36,BD1 5HQ,ADMIN
FOOD STANDARDS AGENCY - Westminster,FOOD STANDARDS AGENCY - Westminster,2019-09-23,EXP - PURCHASE OF GOODS/SERVICES - RAIL TRAVEL,Food Crime Unit - Admin,CORPORATE TRAVEL MANAGEMENT NORTH LTD,1011710699,15.2,TRAVEL EXPENSES - UK Wk 37,BD1 5HQ,ADMIN
FOOD STANDARDS AGENCY - Westminster,FOOD STANDARDS AGENCY - Westminster,2019-09-09,EXP - PURCHASE OF GOODS/SERVICES - OTHER TRAVEL,Analytics Unit,CORPORATE TRAVEL MANAGEMENT NORTH LTD,1011710595,14.1,TRAVEL EXPENSES  UK Wk 35,BD1 5HQ,ADMIN
FOOD STANDARDS AGENCY - Westminster,FOOD STANDARDS AGENCY - Westminster,2019-09-23,EXP - PURCHASE OF GOODS/SERVICES - OTHER TRAVEL,East 1,CORPORATE TRAVEL MANAGEMENT NORTH LTD,1011710699,14.1,TRAVEL EXPENSES - UK Wk 37,BD1 5HQ,PROGRAMME
FOOD STANDARDS AGENCY - Westminster,FOOD STANDARDS AGENCY - Westminster,2019-09-09,EXP - PURCHASE OF GOODS/SERVICES - OTHER TRAVEL,Operational Delivery,CORPORATE TRAVEL MANAGEMENT NORTH LTD,1011710595,14.1,TRAVEL EXPENSES  UK Wk 35,BD1 5HQ,PROGRAMME
FOOD STANDARDS AGENCY - Westminster,FOOD STANDARDS AGENCY - Westminster,2019-09-16,EXP - PURCHASE OF GOODS/SERVICES - OTHER TRAVEL,Chemical Contaminants and Residues,CORPORATE TRAVEL MANAGEMENT NORTH LTD,1011710651,13.6,TRAVEL EXPENSES UK - Wk 36,BD1 5HQ,ADMIN
FOOD STANDARDS AGENCY - Westminster,FOOD STANDARDS AGENCY - Westminster,2019-09-09,EXP - PURCHASE OF GOODS/SERVICES - OTHER TRAVEL,Food Crime Unit - Admin,CORPORATE TRAVEL MANAGEMENT NORTH LTD,1011710595,13.1,TRAVEL EXPENSES  UK Wk 35,BD1 5HQ,ADMIN
FOOD STANDARDS AGENCY - Westminster,FOOD STANDARDS AGENCY - Westminster,2019-09-23,EXP - PURCHASE OF GOODS/SERVICES - TAXI SERVICES,Chief Executive & Private Office,CORPORATE TRAVEL MANAGEMENT NORTH LTD,1011710699,12.66,TRAVEL EXPENSES - UK Wk 37,BD1 5HQ,ADMIN
FOOD STANDARDS AGENCY - Westminster,FOOD STANDARDS AGENCY - Westminster,2019-09-23,EXP - PURCHASE OF GOODS/SERVICES - TAXI SERVICES,Operations Assurance ,CORPORATE TRAVEL MANAGEMENT NORTH LTD,1011710699,12.26,TRAVEL EXPENSES - UK Wk 37,BD1 5HQ,PROGRAMME
FOOD STANDARDS AGENCY - Westminster,FOOD STANDARDS AGENCY - Westminster,2019-09-23,EXP - PURCHASE OF GOODS/SERVICES - RAIL TRAVEL,Surveillance,CORPORATE TRAVEL MANAGEMENT NORTH LTD,1011710699,10.5,TRAVEL EXPENSES - UK Wk 37,BD1 5HQ,ADMIN
FOOD STANDARDS AGENCY - Westminster,FOOD STANDARDS AGENCY - Westminster,2019-09-16,EXP - PURCHASE OF GOODS/SERVICES - FOREIGN SUBSISTENCE,Risk Assessment - operations,CORPORATE TRAVEL MANAGEMENT NORTH LTD,1011710651,2.93,TRAVEL EXPENSES UK - Wk 36,BD1 5HQ,ADMIN
FOOD STANDARDS AGENCY - Westminster,FOOD STANDARDS AGENCY - Westminster,2019-09-23,EXP - PURCHASE OF GOODS/SERVICES - AIR TRAVEL,"Food Additives, Flavourings, and Food Contact Materials",CORPORATE TRAVEL MANAGEMENT NORTH LTD,1011710699,2.92,TRAVEL EXPENSES - UK Wk 37,BD1 5HQ,ADMIN
FOOD STANDARDS AGENCY - Westminster,FOOD STANDARDS AGENCY - Westminster,2019-09-09,EXP - PURCHASE OF GOODS/SERVICES - FOREIGN SUBSISTENCE,Chief Scientific Advisors team,CORPORATE TRAVEL MANAGEMENT NORTH LTD,1011710595,1.8,TRAVEL EXPENSES  UK Wk 35,BD1 5HQ,ADMIN
FOOD STANDARDS AGENCY - Westminster,FOOD STANDARDS AGENCY - Westminster,2019-09-16,EXP - PURCHASE OF GOODS/SERVICES - FOREIGN SUBSISTENCE,Chemical Contaminants and Residues,CORPORATE TRAVEL MANAGEMENT NORTH LTD,1011710651,1.2,TRAVEL EXPENSES UK - Wk 36,BD1 5HQ,ADMIN
FOOD STANDARDS AGENCY - Westminster,FOOD STANDARDS AGENCY - Westminster,2019-09-09,EXP - PURCHASE OF GOODS/SERVICES - SUBSISTENCE,Chief Scientific Advisors team,CORPORATE TRAVEL MANAGEMENT NORTH LTD,1011710595,0.6,TRAVEL EXPENSES  UK Wk 35,BD1 5HQ,ADMIN
FOOD STANDARDS AGENCY - Westminster,FOOD STANDARDS AGENCY - Westminster,2019-09-16,EXP - PURCHASE OF GOODS/SERVICES - FOREIGN SUBSISTENCE,"Novel Foods, GM, Radiological and Feed Additives",CORPORATE TRAVEL MANAGEMENT NORTH LTD,1011710651,0.6,TRAVEL EXPENSES UK - Wk 36,BD1 5HQ,ADMIN
FOOD STANDARDS AGENCY - Westminster,FOOD STANDARDS AGENCY - Westminster,2019-09-23,EXP - PURCHASE OF GOODS/SERVICES - FOREIGN SUBSISTENCE,Risk Assessment - operations,CORPORATE TRAVEL MANAGEMENT NORTH LTD,1011710699,0.6,TRAVEL EXPENSES - UK Wk 37,BD1 5HQ,ADMIN
FOOD STANDARDS AGENCY - Westminster,FOOD STANDARDS AGENCY - Westminster,2019-09-23,EXP - PURCHASE OF GOODS/SERVICES - RAIL TRAVEL,North 2,CORPORATE TRAVEL MANAGEMENT NORTH LTD,1011710699,-0.3,TRAVEL EXPENSES - UK Wk 37,BD1 5HQ,PROGRAMME
FOOD STANDARDS AGENCY - Westminster,FOOD STANDARDS AGENCY - Westminster,2019-09-09,EXP - PURCHASE OF GOODS/SERVICES - SUBSISTENCE,Comms Directors Office,CORPORATE TRAVEL MANAGEMENT NORTH LTD,1011710595,-45.39,TRAVEL EXPENSES  UK Wk 35,BD1 5HQ,ADMIN
